Workbook

Sheet RESUMEN
A2: SERVICIO DE SALUD COQUIMBO
A3: DEPARTAMENTO DE GESTIÓN, PLANIFICACIÓN Y CONTROL
A4: SUBDEPTO. DE ESTADÍSTICAS Y GESTIÓN DE LA INFORMACIÓN
A5: AÑO 2022
B7: INDICADOR 6.4: Índice de Ocupación Dental (IOD) del Servicio de Salud en el periodo.
B13: HOSPITAL | C13: NUMERADOR | I13: DENOMINADOR | K13: INDICADOR
D15: Total de consultas nuevas de subespecialidades odontológicas realizadas en el periodo por rendimiento de cada subespecialidad) + (Total de controles de subespecialidades odontológicas realizados en el periodo por rendimiento de cada subespecialidad) + (Total de consultas de urgencia GES y No GES realizados en el periodo por 0,45)] | I15: Denominador (*) [(Unidades dentales en dotación x 36 x Número de semanas a evaluar en el periodo) x 0,85]}.
C16: CONSULTAS URGENCIA GES | D16: CONSULTAS URGENCIA NO GES | E16: (CONSULTA URGENCIA GES Y NO GES) * 0.45 | F16: CONSULTA NUEVA | G16: CONTROL | H16: TOTAL
B19: HOSPITAL LA SERENA | C19: =HLS!$R$17 -> 337 | D19: =HLS!$R$18 -> 132 | E19: =(C19+D19)*0.45 -> 211 | F19: =HLS!$R$48 -> 5178 | G19: =HLS!$R$49 -> 19253 | H19: =SUM(E19:G20) -> 24642 | K19: =H19/I19 -> 
B21: HOSPITAL COQUIMBO | C21: =HCQ!$R$17 -> 176 | D21: =HCQ!$R$18 -> 220 | E21: =(C21+D21)*0.45 -> 178 | F21: =HCQ!$R$48 -> 3796 | G21: =HCQ!$R$49 -> 12470 | H21: =SUM(E21:G22) -> 16444 | K21: =H21/I21 -> 
B23: HOSPITAL OVALLE | C23: =HOV!$R$17 -> 119 | D23: =HOV!$R$18 -> 310 | E23: =(C23+D23)*0.45 -> 193 | F23: =HOV!$R$48 -> 3101 | G23: =HOV!$R$49 -> 10927 | H23: =SUM(E23:G24) -> 14221 | K23: =H23/I23 -> 
B25: HOSPITAL ILLAPEL | C25: =HILL!$R$17 -> 0 | D25: =HILL!$R$18 -> 278 | E25: =(C25+D25)*0.45 -> 125 | F25: =HILL!$R$48 -> 2433 | G25: =HILL!$R$49 -> 8369 | H25: =SUM(E25:G26) -> 10927 | K25: =H25/I25 -> 
B27: TOTAL | C27: =SUM(C19:C26) -> 632 | D27: =SUM(D19:D26) -> 940 | E27: =(C27+D27)*0.45 -> 707 | F27: =SUM(F19:F26) -> 14508 | G27: 51019 | H27: =SUM(H19:H26) -> 66234 | I27: =SUM(I19:J26) -> 0 | K27: =H27/I27 -> 
B30: Fuente: REM A09, Sección I

Sheet Consolidado
A1: MINISTERIO DE SALUD
A2: SERVICIO DE SALUD COQUIMBO
A3: DEPARTAMENTO DE GESTIÓN, PLANIFICACIÓN Y CONTROL
A4: SUBDEPTO. DE ESTADÍSTICAS Y GESTIÓN DE LA INFORMACIÓN
A5: AÑO 2022
C8: INDICADOR 6.4: Índice de Ocupación Dental (IOD) del Servicio de Salud en el periodo.
C14: ESPECIALIDAD Y TIPO DE INGRESO O EGRESO | D14: Región | R14: TOTAL
F15: Enero | G15: Febrero | H15: Marzo | I15: Abril | J15: Mayo | K15: Junio | L15: Julio | M15: Agosto | N15: Septiembre | O15: Octubre | P15: Noviembre | Q15: Diciembre
B17: 09240700 | C17: CONSULTAS DE URGENCIA | D17: CONSULTAS GES | F17: =HLS!F17+HCQ!F17+HOV!F17+HILL!F17 -> 61 | G17: =HLS!G17+HCQ!G17+HOV!G17+HILL!G17 -> 56 | H17: =HLS!H17+HCQ!H17+HOV!H17+HILL!H17 -> 71 | I17: =HLS!I17+HCQ!I17+HOV!I17+HILL!I17 -> 65 | J17: =HLS!J17+HCQ!J17+HOV!J17+HILL!J17 -> 78 | K17: =HLS!K17+HCQ!K17+HOV!K17+HILL!K17 -> 33 | L17: =HLS!L17+HCQ!L17+HOV!L17+HILL!L17 -> 33 | M17: =HLS!M17+HCQ!M17+HOV!M17+HILL!M17 -> 83 | N17: =HLS!N17+HCQ!N17+HOV!N17+HILL!N17 -> 27 | O17: =HLS!O17+HCQ!O17+HOV!O17+HILL!O17 -> 50 | P17: =HLS!P17+HCQ!P17+HOV!P17+HILL!P17 -> 47 | Q17: =HLS!Q17+HCQ!Q17+HOV!Q17+HILL!Q17 -> 28 | R17: =SUM(F17:Q17) -> 632
B18: 09600325 | D18: CONSULTA NO GES | F18: =HLS!F18+HCQ!F18+HOV!F18+HILL!F18 -> 86 | G18: =HLS!G18+HCQ!G18+HOV!G18+HILL!G18 -> 76 | H18: =HLS!H18+HCQ!H18+HOV!H18+HILL!H18 -> 114 | I18: =HLS!I18+HCQ!I18+HOV!I18+HILL!I18 -> 63 | J18: =HLS!J18+HCQ!J18+HOV!J18+HILL!J18 -> 83 | K18: =HLS!K18+HCQ!K18+HOV!K18+HILL!K18 -> 59 | L18: =HLS!L18+HCQ!L18+HOV!L18+HILL!L18 -> 68 | M18: =HLS!M18+HCQ!M18+HOV!M18+HILL!M18 -> 97 | N18: =HLS!N18+HCQ!N18+HOV!N18+HILL!N18 -> 74 | O18: =HLS!O18+HCQ!O18+HOV!O18+HILL!O18 -> 93 | P18: =HLS!P18+HCQ!P18+HOV!P18+HILL!P18 -> 62 | Q18: =HLS!Q18+HCQ!Q18+HOV!Q18+HILL!Q18 -> 65 | R18: =SUM(F18:Q18) -> 940
B19: 09600155 | C19: CIRUGÍA BUCAL | D19: CONSULTA NUEVA | F19: =HLS!F19+HCQ!F19+HOV!F19+HILL!F19 -> 29 | G19: =HLS!G19+HCQ!G19+HOV!G19+HILL!G19 -> 28 | H19: =HLS!H19+HCQ!H19+HOV!H19+HILL!H19 -> 47 | I19: =HLS!I19+HCQ!I19+HOV!I19+HILL!I19 -> 27 | J19: =HLS!J19+HCQ!J19+HOV!J19+HILL!J19 -> 61 | K19: =HLS!K19+HCQ!K19+HOV!K19+HILL!K19 -> 49 | L19: =HLS!L19+HCQ!L19+HOV!L19+HILL!L19 -> 43 | M19: =HLS!M19+HCQ!M19+HOV!M19+HILL!M19 -> 36 | N19: =HLS!N19+HCQ!N19+HOV!N19+HILL!N19 -> 57 | O19: =HLS!O19+HCQ!O19+HOV!O19+HILL!O19 -> 87 | P19: =HLS!P19+HCQ!P19+HOV!P19+HILL!P19 -> 78 | Q19: =HLS!Q19+HCQ!Q19+HOV!Q19+HILL!Q19 -> 49 | R19: 591
B20: 09600156 | D20: CONTROL | F20: =HLS!F20+HCQ!F20+HOV!F20+HILL!F20 -> 106 | G20: =HLS!G20+HCQ!G20+HOV!G20+HILL!G20 -> 95 | H20: =HLS!H20+HCQ!H20+HOV!H20+HILL!H20 -> 120 | I20: =HLS!I20+HCQ!I20+HOV!I20+HILL!I20 -> 59 | J20: =HLS!J20+HCQ!J20+HOV!J20+HILL!J20 -> 140 | K20: =HLS!K20+HCQ!K20+HOV!K20+HILL!K20 -> 135 | L20: =HLS!L20+HCQ!L20+HOV!L20+HILL!L20 -> 117 | M20: =HLS!M20+HCQ!M20+HOV!M20+HILL!M20 -> 169 | N20: =HLS!N20+HCQ!N20+HOV!N20+HILL!N20 -> 106 | O20: =HLS!O20+HCQ!O20+HOV!O20+HILL!O20 -> 170 | P20: =HLS!P20+HCQ!P20+HOV!P20+HILL!P20 -> 186 | Q20: =HLS!Q20+HCQ!Q20+HOV!Q20+HILL!Q20 -> 137 | R20: 1540
B21: 09600158 | C21: CIRUGÍA Y TRAUMATOLOGÍA MAXILOFACIAL | D21: CONSULTA NUEVA | F21: =HLS!F21+HCQ!F21+HOV!F21+HILL!F21 -> 201 | G21: =HLS!G21+HCQ!G21+HOV!G21+HILL!G21 -> 171 | H21: =HLS!H21+HCQ!H21+HOV!H21+HILL!H21 -> 213 | I21: =HLS!I21+HCQ!I21+HOV!I21+HILL!I21 -> 236 | J21: =HLS!J21+HCQ!J21+HOV!J21+HILL!J21 -> 300 | K21: =HLS!K21+HCQ!K21+HOV!K21+HILL!K21 -> 218 | L21: =HLS!L21+HCQ!L21+HOV!L21+HILL!L21 -> 223 | M21: =HLS!M21+HCQ!M21+HOV!M21+HILL!M21 -> 241 | N21: =HLS!N21+HCQ!N21+HOV!N21+HILL!N21 -> 168 | O21: =HLS!O21+HCQ!O21+HOV!O21+HILL!O21 -> 215 | P21: =HLS!P21+HCQ!P21+HOV!P21+HILL!P21 -> 236 | Q21: =HLS!Q21+HCQ!Q21+HOV!Q21+HILL!Q21 -> 229 | R21: 2651
B22: 09600159 | D22: CONTROL | F22: =HLS!F22+HCQ!F22+HOV!F22+HILL!F22 -> 477 | G22: =HLS!G22+HCQ!G22+HOV!G22+HILL!G22 -> 443 | H22: =HLS!H22+HCQ!H22+HOV!H22+HILL!H22 -> 517 | I22: =HLS!I22+HCQ!I22+HOV!I22+HILL!I22 -> 585 | J22: =HLS!J22+HCQ!J22+HOV!J22+HILL!J22 -> 578 | K22: =HLS!K22+HCQ!K22+HOV!K22+HILL!K22 -> 519 | L22: =HLS!L22+HCQ!L22+HOV!L22+HILL!L22 -> 457 | M22: =HLS!M22+HCQ!M22+HOV!M22+HILL!M22 -> 513 | N22: =HLS!N22+HCQ!N22+HOV!N22+HILL!N22 -> 368 | O22: =HLS!O22+HCQ!O22+HOV!O22+HILL!O22 -> 566 | P22: =HLS!P22+HCQ!P22+HOV!P22+HILL!P22 -> 536 | Q22: =HLS!Q22+HCQ!Q22+HOV!Q22+HILL!Q22 -> 470 | R22: 6029
B23: 09600161 | C23: ENDODONCIA | D23: CONSULTA NUEVA | F23: =HLS!F23+HCQ!F23+HOV!F23+HILL!F23 -> 285 | G23: =HLS!G23+HCQ!G23+HOV!G23+HILL!G23 -> 167 | H23: =HLS!H23+HCQ!H23+HOV!H23+HILL!H23 -> 401 | I23: =HLS!I23+HCQ!I23+HOV!I23+HILL!I23 -> 338 | J23: =HLS!J23+HCQ!J23+HOV!J23+HILL!J23 -> 400 | K23: =HLS!K23+HCQ!K23+HOV!K23+HILL!K23 -> 382 | L23: =HLS!L23+HCQ!L23+HOV!L23+HILL!L23 -> 348 | M23: =HLS!M23+HCQ!M23+HOV!M23+HILL!M23 -> 389 | N23: =HLS!N23+HCQ!N23+HOV!N23+HILL!N23 -> 273 | O23: =HLS!O23+HCQ!O23+HOV!O23+HILL!O23 -> 309 | P23: =HLS!P23+HCQ!P23+HOV!P23+HILL!P23 -> 276 | Q23: =HLS!Q23+HCQ!Q23+HOV!Q23+HILL!Q23 -> 242 | R23: 3810
B24: 09600162 | D24: CONTROL | F24: =HLS!F24+HCQ!F24+HOV!F24+HILL!F24 -> 531 | G24: =HLS!G24+HCQ!G24+HOV!G24+HILL!G24 -> 300 | H24: =HLS!H24+HCQ!H24+HOV!H24+HILL!H24 -> 614 | I24: =HLS!I24+HCQ!I24+HOV!I24+HILL!I24 -> 585 | J24: =HLS!J24+HCQ!J24+HOV!J24+HILL!J24 -> 739 | K24: =HLS!K24+HCQ!K24+HOV!K24+HILL!K24 -> 563 | L24: =HLS!L24+HCQ!L24+HOV!L24+HILL!L24 -> 601 | M24: =HLS!M24+HCQ!M24+HOV!M24+HILL!M24 -> 759 | N24: =HLS!N24+HCQ!N24+HOV!N24+HILL!N24 -> 621 | O24: =HLS!O24+HCQ!O24+HOV!O24+HILL!O24 -> 713 | P24: =HLS!P24+HCQ!P24+HOV!P24+HILL!P24 -> 620 | Q24: =HLS!Q24+HCQ!Q24+HOV!Q24+HILL!Q24 -> 598 | R24: 7244
B25: 09600164 | C25: ODONTOPEDIATRÍA | D25: CONSULTA NUEVA | F25: =HLS!F25+HCQ!F25+HOV!F25+HILL!F25 -> 111 | G25: =HLS!G25+HCQ!G25+HOV!G25+HILL!G25 -> 57 | H25: =HLS!H25+HCQ!H25+HOV!H25+HILL!H25 -> 123 | I25: =HLS!I25+HCQ!I25+HOV!I25+HILL!I25 -> 104 | J25: =HLS!J25+HCQ!J25+HOV!J25+HILL!J25 -> 137 | K25: =HLS!K25+HCQ!K25+HOV!K25+HILL!K25 -> 118 | L25: =HLS!L25+HCQ!L25+HOV!L25+HILL!L25 -> 94 | M25: =HLS!M25+HCQ!M25+HOV!M25+HILL!M25 -> 150 | N25: =HLS!N25+HCQ!N25+HOV!N25+HILL!N25 -> 111 | O25: =HLS!O25+HCQ!O25+HOV!O25+HILL!O25 -> 91 | P25: =HLS!P25+HCQ!P25+HOV!P25+HILL!P25 -> 121 | Q25: =HLS!Q25+HCQ!Q25+HOV!Q25+HILL!Q25 -> 95 | R25: 1312
B26: 09600165 | D26: CONTROL | F26: =HLS!F26+HCQ!F26+HOV!F26+HILL!F26 -> 376 | G26: =HLS!G26+HCQ!G26+HOV!G26+HILL!G26 -> 326 | H26: =HLS!H26+HCQ!H26+HOV!H26+HILL!H26 -> 597 | I26: =HLS!I26+HCQ!I26+HOV!I26+HILL!I26 -> 605 | J26: =HLS!J26+HCQ!J26+HOV!J26+HILL!J26 -> 765 | K26: =HLS!K26+HCQ!K26+HOV!K26+HILL!K26 -> 559 | L26: =HLS!L26+HCQ!L26+HOV!L26+HILL!L26 -> 465 | M26: =HLS!M26+HCQ!M26+HOV!M26+HILL!M26 -> 601 | N26: =HLS!N26+HCQ!N26+HOV!N26+HILL!N26 -> 561 | O26: =HLS!O26+HCQ!O26+HOV!O26+HILL!O26 -> 532 | P26: =HLS!P26+HCQ!P26+HOV!P26+HILL!P26 -> 680 | Q26: =HLS!Q26+HCQ!Q26+HOV!Q26+HILL!Q26 -> 635 | R26: 6702
B27: 09600167 | C27: OPERATORIA | D27: CONSULTA NUEVA | F27: =HLS!F27+HCQ!F27+HOV!F27+HILL!F27 -> 27 | G27: =HLS!G27+HCQ!G27+HOV!G27+HILL!G27 -> 19 | H27: =HLS!H27+HCQ!H27+HOV!H27+HILL!H27 -> 18 | I27: =HLS!I27+HCQ!I27+HOV!I27+HILL!I27 -> 12 | J27: =HLS!J27+HCQ!J27+HOV!J27+HILL!J27 -> 22 | K27: =HLS!K27+HCQ!K27+HOV!K27+HILL!K27 -> 19 | L27: =HLS!L27+HCQ!L27+HOV!L27+HILL!L27 -> 22 | M27: =HLS!M27+HCQ!M27+HOV!M27+HILL!M27 -> 11 | N27: =HLS!N27+HCQ!N27+HOV!N27+HILL!N27 -> 16 | O27: =HLS!O27+HCQ!O27+HOV!O27+HILL!O27 -> 7 | P27: =HLS!P27+HCQ!P27+HOV!P27+HILL!P27 -> 26 | Q27: =HLS!Q27+HCQ!Q27+HOV!Q27+HILL!Q27 -> 9 | R27: 208
B28: 09600168 | D28: CONTROL | F28: =HLS!F28+HCQ!F28+HOV!F28+HILL!F28 -> 124 | G28: =HLS!G28+HCQ!G28+HOV!G28+HILL!G28 -> 81 | H28: =HLS!H28+HCQ!H28+HOV!H28+HILL!H28 -> 86 | I28: =HLS!I28+HCQ!I28+HOV!I28+HILL!I28 -> 103 | J28: =HLS!J28+HCQ!J28+HOV!J28+HILL!J28 -> 129 | K28: =HLS!K28+HCQ!K28+HOV!K28+HILL!K28 -> 70 | L28: =HLS!L28+HCQ!L28+HOV!L28+HILL!L28 -> 84 | M28: =HLS!M28+HCQ!M28+HOV!M28+HILL!M28 -> 119 | N28: =HLS!N28+HCQ!N28+HOV!N28+HILL!N28 -> 89 | O28: =HLS!O28+HCQ!O28+HOV!O28+HILL!O28 -> 54 | P28: =HLS!P28+HCQ!P28+HOV!P28+HILL!P28 -> 70 | Q28: =HLS!Q28+HCQ!Q28+HOV!Q28+HILL!Q28 -> 73 | R28: 1082
B29: 09600170 | C29: ORTODONCIA Y ORTOPEDIA DENTO MAXILOFACIAL: APARATOLOGÍA FIJA | D29: CONSULTA NUEVA | F29: =HLS!F29+HCQ!F29+HOV!F29+HILL!F29 -> 92 | G29: =HLS!G29+HCQ!G29+HOV!G29+HILL!G29 -> 51 | H29: =HLS!H29+HCQ!H29+HOV!H29+HILL!H29 -> 96 | I29: =HLS!I29+HCQ!I29+HOV!I29+HILL!I29 -> 95 | J29: =HLS!J29+HCQ!J29+HOV!J29+HILL!J29 -> 102 | K29: =HLS!K29+HCQ!K29+HOV!K29+HILL!K29 -> 92 | L29: =HLS!L29+HCQ!L29+HOV!L29+HILL!L29 -> 87 | M29: =HLS!M29+HCQ!M29+HOV!M29+HILL!M29 -> 57 | N29: =HLS!N29+HCQ!N29+HOV!N29+HILL!N29 -> 124 | O29: =HLS!O29+HCQ!O29+HOV!O29+HILL!O29 -> 78 | P29: =HLS!P29+HCQ!P29+HOV!P29+HILL!P29 -> 141 | Q29: =HLS!Q29+HCQ!Q29+HOV!Q29+HILL!Q29 -> 121 | R29: 1136
B30: 09600171 | D30: CONTROL | F30: =HLS!F30+HCQ!F30+HOV!F30+HILL!F30 -> 912 | G30: =HLS!G30+HCQ!G30+HOV!G30+HILL!G30 -> 643 | H30: =HLS!H30+HCQ!H30+HOV!H30+HILL!H30 -> 1056 | I30: =HLS!I30+HCQ!I30+HOV!I30+HILL!I30 -> 793 | J30: =HLS!J30+HCQ!J30+HOV!J30+HILL!J30 -> 1015 | K30: =HLS!K30+HCQ!K30+HOV!K30+HILL!K30 -> 835 | L30: =HLS!L30+HCQ!L30+HOV!L30+HILL!L30 -> 671 | M30: =HLS!M30+HCQ!M30+HOV!M30+HILL!M30 -> 1003 | N30: =HLS!N30+HCQ!N30+HOV!N30+HILL!N30 -> 694 | O30: =HLS!O30+HCQ!O30+HOV!O30+HILL!O30 -> 919 | P30: =HLS!P30+HCQ!P30+HOV!P30+HILL!P30 -> 895 | Q30: =HLS!Q30+HCQ!Q30+HOV!Q30+HILL!Q30 -> 781 | R30: 10217
B31: 09600173 | C31: ORTODONCIA Y ORTOPEDIA DENTO MAXILOFACIAL: APARATOLOGÍA REMOVIBLE | D31: CONSULTA NUEVA | F31: =HLS!F31+HCQ!F31+HOV!F31+HILL!F31 -> 16 | G31: =HLS!G31+HCQ!G31+HOV!G31+HILL!G31 -> 7 | H31: =HLS!H31+HCQ!H31+HOV!H31+HILL!H31 -> 21 | I31: =HLS!I31+HCQ!I31+HOV!I31+HILL!I31 -> 1 | J31: =HLS!J31+HCQ!J31+HOV!J31+HILL!J31 -> 11 | K31: =HLS!K31+HCQ!K31+HOV!K31+HILL!K31 -> 8 | L31: =HLS!L31+HCQ!L31+HOV!L31+HILL!L31 -> 13 | M31: =HLS!M31+HCQ!M31+HOV!M31+HILL!M31 -> 11 | N31: =HLS!N31+HCQ!N31+HOV!N31+HILL!N31 -> 8 | O31: =HLS!O31+HCQ!O31+HOV!O31+HILL!O31 -> 21 | P31: =HLS!P31+HCQ!P31+HOV!P31+HILL!P31 -> 17 | Q31: =HLS!Q31+HCQ!Q31+HOV!Q31+HILL!Q31 -> 14 | R31: 148
B32: 09600174 | D32: CONTROL | F32: =HLS!F32+HCQ!F32+HOV!F32+HILL!F32 -> 116 | G32: =HLS!G32+HCQ!G32+HOV!G32+HILL!G32 -> 53 | H32: =HLS!H32+HCQ!H32+HOV!H32+HILL!H32 -> 132 | I32: =HLS!I32+HCQ!I32+HOV!I32+HILL!I32 -> 115 | J32: =HLS!J32+HCQ!J32+HOV!J32+HILL!J32 -> 140 | K32: =HLS!K32+HCQ!K32+HOV!K32+HILL!K32 -> 92 | L32: =HLS!L32+HCQ!L32+HOV!L32+HILL!L32 -> 114 | M32: =HLS!M32+HCQ!M32+HOV!M32+HILL!M32 -> 144 | N32: =HLS!N32+HCQ!N32+HOV!N32+HILL!N32 -> 36 | O32: =HLS!O32+HCQ!O32+HOV!O32+HILL!O32 -> 126 | P32: =HLS!P32+HCQ!P32+HOV!P32+HILL!P32 -> 106 | Q32: =HLS!Q32+HCQ!Q32+HOV!Q32+HILL!Q32 -> 95 | R32: 1269
B33: 09600178 | C33: PERIODONCIA | D33: CONSULTA NUEVA | F33: =HLS!F33+HCQ!F33+HOV!F33+HILL!F33 -> 124 | G33: =HLS!G33+HCQ!G33+HOV!G33+HILL!G33 -> 79 | H33: =HLS!H33+HCQ!H33+HOV!H33+HILL!H33 -> 126 | I33: =HLS!I33+HCQ!I33+HOV!I33+HILL!I33 -> 108 | J33: =HLS!J33+HCQ!J33+HOV!J33+HILL!J33 -> 114 | K33: =HLS!K33+HCQ!K33+HOV!K33+HILL!K33 -> 166 | L33: =HLS!L33+HCQ!L33+HOV!L33+HILL!L33 -> 145 | M33: =HLS!M33+HCQ!M33+HOV!M33+HILL!M33 -> 151 | N33: =HLS!N33+HCQ!N33+HOV!N33+HILL!N33 -> 200 | O33: =HLS!O33+HCQ!O33+HOV!O33+HILL!O33 -> 169 | P33: =HLS!P33+HCQ!P33+HOV!P33+HILL!P33 -> 178 | Q33: =HLS!Q33+HCQ!Q33+HOV!Q33+HILL!Q33 -> 138 | R33: 1698
B34: 09600179 | D34: CONTROL | F34: =HLS!F34+HCQ!F34+HOV!F34+HILL!F34 -> 399 | G34: =HLS!G34+HCQ!G34+HOV!G34+HILL!G34 -> 198 | H34: =HLS!H34+HCQ!H34+HOV!H34+HILL!H34 -> 478 | I34: =HLS!I34+HCQ!I34+HOV!I34+HILL!I34 -> 398 | J34: =HLS!J34+HCQ!J34+HOV!J34+HILL!J34 -> 457 | K34: =HLS!K34+HCQ!K34+HOV!K34+HILL!K34 -> 388 | L34: =HLS!L34+HCQ!L34+HOV!L34+HILL!L34 -> 312 | M34: =HLS!M34+HCQ!M34+HOV!M34+HILL!M34 -> 473 | N34: =HLS!N34+HCQ!N34+HOV!N34+HILL!N34 -> 382 | O34: =HLS!O34+HCQ!O34+HOV!O34+HILL!O34 -> 412 | P34: =HLS!P34+HCQ!P34+HOV!P34+HILL!P34 -> 367 | Q34: =HLS!Q34+HCQ!Q34+HOV!Q34+HILL!Q34 -> 439 | R34: 4703
B35: 09600181 | C35: REHABILITACIÓN: PRÓTESIS FIJA | D35: CONSULTA NUEVA | F35: =HLS!F35+HCQ!F35+HOV!F35+HILL!F35 -> 0 | G35: =HLS!G35+HCQ!G35+HOV!G35+HILL!G35 -> 4 | H35: =HLS!H35+HCQ!H35+HOV!H35+HILL!H35 -> 9 | I35: =HLS!I35+HCQ!I35+HOV!I35+HILL!I35 -> 2 | J35: =HLS!J35+HCQ!J35+HOV!J35+HILL!J35 -> 5 | K35: =HLS!K35+HCQ!K35+HOV!K35+HILL!K35 -> 7 | L35: =HLS!L35+HCQ!L35+HOV!L35+HILL!L35 -> 2 | M35: =HLS!M35+HCQ!M35+HOV!M35+HILL!M35 -> 4 | N35: =HLS!N35+HCQ!N35+HOV!N35+HILL!N35 -> 4 | O35: =HLS!O35+HCQ!O35+HOV!O35+HILL!O35 -> 5 | P35: =HLS!P35+HCQ!P35+HOV!P35+HILL!P35 -> 5 | Q35: =HLS!Q35+HCQ!Q35+HOV!Q35+HILL!Q35 -> 3 | R35: 50
B36: 09600182 | D36: CONTROL | F36: =HLS!F36+HCQ!F36+HOV!F36+HILL!F36 -> 12 | G36: =HLS!G36+HCQ!G36+HOV!G36+HILL!G36 -> 15 | H36: =HLS!H36+HCQ!H36+HOV!H36+HILL!H36 -> 17 | I36: =HLS!I36+HCQ!I36+HOV!I36+HILL!I36 -> 11 | J36: =HLS!J36+HCQ!J36+HOV!J36+HILL!J36 -> 19 | K36: =HLS!K36+HCQ!K36+HOV!K36+HILL!K36 -> 12 | L36: =HLS!L36+HCQ!L36+HOV!L36+HILL!L36 -> 11 | M36: =HLS!M36+HCQ!M36+HOV!M36+HILL!M36 -> 28 | N36: =HLS!N36+HCQ!N36+HOV!N36+HILL!N36 -> 22 | O36: =HLS!O36+HCQ!O36+HOV!O36+HILL!O36 -> 10 | P36: =HLS!P36+HCQ!P36+HOV!P36+HILL!P36 -> 16 | Q36: =HLS!Q36+HCQ!Q36+HOV!Q36+HILL!Q36 -> 23 | R36: 196
B37: 09600184 | C37: REHABILITACIÓN: PRÓTESIS REMOVIBLE | D37: CONSULTA NUEVA | F37: =HLS!F37+HCQ!F37+HOV!F37+HILL!F37 -> 212 | G37: =HLS!G37+HCQ!G37+HOV!G37+HILL!G37 -> 133 | H37: =HLS!H37+HCQ!H37+HOV!H37+HILL!H37 -> 207 | I37: =HLS!I37+HCQ!I37+HOV!I37+HILL!I37 -> 197 | J37: =HLS!J37+HCQ!J37+HOV!J37+HILL!J37 -> 164 | K37: =HLS!K37+HCQ!K37+HOV!K37+HILL!K37 -> 190 | L37: =HLS!L37+HCQ!L37+HOV!L37+HILL!L37 -> 162 | M37: =HLS!M37+HCQ!M37+HOV!M37+HILL!M37 -> 124 | N37: =HLS!N37+HCQ!N37+HOV!N37+HILL!N37 -> 109 | O37: =HLS!O37+HCQ!O37+HOV!O37+HILL!O37 -> 196 | P37: =HLS!P37+HCQ!P37+HOV!P37+HILL!P37 -> 237 | Q37: =HLS!Q37+HCQ!Q37+HOV!Q37+HILL!Q37 -> 128 | R37: 2059
B38: 09600185 | D38: CONTROL | F38: =HLS!F38+HCQ!F38+HOV!F38+HILL!F38 -> 1037 | G38: =HLS!G38+HCQ!G38+HOV!G38+HILL!G38 -> 586 | H38: =HLS!H38+HCQ!H38+HOV!H38+HILL!H38 -> 982 | I38: =HLS!I38+HCQ!I38+HOV!I38+HILL!I38 -> 994 | J38: =HLS!J38+HCQ!J38+HOV!J38+HILL!J38 -> 831 | K38: =HLS!K38+HCQ!K38+HOV!K38+HILL!K38 -> 610 | L38: =HLS!L38+HCQ!L38+HOV!L38+HILL!L38 -> 508 | M38: =HLS!M38+HCQ!M38+HOV!M38+HILL!M38 -> 904 | N38: =HLS!N38+HCQ!N38+HOV!N38+HILL!N38 -> 609 | O38: =HLS!O38+HCQ!O38+HOV!O38+HILL!O38 -> 538 | P38: =HLS!P38+HCQ!P38+HOV!P38+HILL!P38 -> 595 | Q38: =HLS!Q38+HCQ!Q38+HOV!Q38+HILL!Q38 -> 500 | R38: 8694
B39: 09600187 | C39: REHABILITACIÓN: PRÓTESIS IMPLANTOASISTIDA | D39: CONSULTA NUEVA | F39: =HLS!F39+HCQ!F39+HOV!F39+HILL!F39 -> 4 | G39: =HLS!G39+HCQ!G39+HOV!G39+HILL!G39 -> 0 | H39: =HLS!H39+HCQ!H39+HOV!H39+HILL!H39 -> 9 | I39: =HLS!I39+HCQ!I39+HOV!I39+HILL!I39 -> 5 | J39: =HLS!J39+HCQ!J39+HOV!J39+HILL!J39 -> 6 | K39: =HLS!K39+HCQ!K39+HOV!K39+HILL!K39 -> 31 | L39: =HLS!L39+HCQ!L39+HOV!L39+HILL!L39 -> 29 | M39: =HLS!M39+HCQ!M39+HOV!M39+HILL!M39 -> 32 | N39: =HLS!N39+HCQ!N39+HOV!N39+HILL!N39 -> 31 | O39: =HLS!O39+HCQ!O39+HOV!O39+HILL!O39 -> 30 | P39: =HLS!P39+HCQ!P39+HOV!P39+HILL!P39 -> 37 | Q39: =HLS!Q39+HCQ!Q39+HOV!Q39+HILL!Q39 -> 17 | R39: 231
B40: 09600188 | D40: CONTROL | F40: =HLS!F40+HCQ!F40+HOV!F40+HILL!F40 -> 34 | G40: =HLS!G40+HCQ!G40+HOV!G40+HILL!G40 -> 23 | H40: =HLS!H40+HCQ!H40+HOV!H40+HILL!H40 -> 47 | I40: =HLS!I40+HCQ!I40+HOV!I40+HILL!I40 -> 52 | J40: =HLS!J40+HCQ!J40+HOV!J40+HILL!J40 -> 54 | K40: =HLS!K40+HCQ!K40+HOV!K40+HILL!K40 -> 101 | L40: =HLS!L40+HCQ!L40+HOV!L40+HILL!L40 -> 79 | M40: =HLS!M40+HCQ!M40+HOV!M40+HILL!M40 -> 107 | N40: =HLS!N40+HCQ!N40+HOV!N40+HILL!N40 -> 90 | O40: =HLS!O40+HCQ!O40+HOV!O40+HILL!O40 -> 86 | P40: =HLS!P40+HCQ!P40+HOV!P40+HILL!P40 -> 100 | Q40: =HLS!Q40+HCQ!Q40+HOV!Q40+HILL!Q40 -> 93 | R40: 866
B41: 09600192 | C41: IMPLANTOLOGÍA BUCO MAXILOFACIAL | D41: CONSULTA NUEVA | F41: =HLS!F41+HCQ!F41+HOV!F41+HILL!F41 -> 29 | G41: =HLS!G41+HCQ!G41+HOV!G41+HILL!G41 -> 14 | H41: =HLS!H41+HCQ!H41+HOV!H41+HILL!H41 -> 47 | I41: =HLS!I41+HCQ!I41+HOV!I41+HILL!I41 -> 29 | J41: =HLS!J41+HCQ!J41+HOV!J41+HILL!J41 -> 33 | K41: =HLS!K41+HCQ!K41+HOV!K41+HILL!K41 -> 20 | L41: =HLS!L41+HCQ!L41+HOV!L41+HILL!L41 -> 1 | M41: =HLS!M41+HCQ!M41+HOV!M41+HILL!M41 -> 3 | N41: =HLS!N41+HCQ!N41+HOV!N41+HILL!N41 -> 2 | O41: =HLS!O41+HCQ!O41+HOV!O41+HILL!O41 -> 6 | P41: =HLS!P41+HCQ!P41+HOV!P41+HILL!P41 -> 1 | Q41: =HLS!Q41+HCQ!Q41+HOV!Q41+HILL!Q41 -> 2 | R41: 187
B42: 09600193 | D42: CONTROL | F42: =HLS!F42+HCQ!F42+HOV!F42+HILL!F42 -> 83 | G42: =HLS!G42+HCQ!G42+HOV!G42+HILL!G42 -> 31 | H42: =HLS!H42+HCQ!H42+HOV!H42+HILL!H42 -> 130 | I42: =HLS!I42+HCQ!I42+HOV!I42+HILL!I42 -> 117 | J42: =HLS!J42+HCQ!J42+HOV!J42+HILL!J42 -> 122 | K42: =HLS!K42+HCQ!K42+HOV!K42+HILL!K42 -> 26 | L42: =HLS!L42+HCQ!L42+HOV!L42+HILL!L42 -> 7 | M42: =HLS!M42+HCQ!M42+HOV!M42+HILL!M42 -> 35 | N42: =HLS!N42+HCQ!N42+HOV!N42+HILL!N42 -> 26 | O42: =HLS!O42+HCQ!O42+HOV!O42+HILL!O42 -> 16 | P42: =HLS!P42+HCQ!P42+HOV!P42+HILL!P42 -> 23 | Q42: =HLS!Q42+HCQ!Q42+HOV!Q42+HILL!Q42 -> 31 | R42: 647
B43: 09600195 | C43: PATOLOGÍA ORAL | D43: CONSULTA NUEVA | F43: =HLS!F43+HCQ!F43+HOV!F43+HILL!F43 -> 0 | G43: =HLS!G43+HCQ!G43+HOV!G43+HILL!G43 -> 0 | H43: =HLS!H43+HCQ!H43+HOV!H43+HILL!H43 -> 0 | I43: =HLS!I43+HCQ!I43+HOV!I43+HILL!I43 -> 0 | J43: =HLS!J43+HCQ!J43+HOV!J43+HILL!J43 -> 0 | K43: =HLS!K43+HCQ!K43+HOV!K43+HILL!K43 -> 0 | L43: =HLS!L43+HCQ!L43+HOV!L43+HILL!L43 -> 0 | M43: =HLS!M43+HCQ!M43+HOV!M43+HILL!M43 -> 0 | N43: =HLS!N43+HCQ!N43+HOV!N43+HILL!N43 -> 0 | O43: =HLS!O43+HCQ!O43+HOV!O43+HILL!O43 -> 0 | P43: =HLS!P43+HCQ!P43+HOV!P43+HILL!P43 -> 15 | Q43: =HLS!Q43+HCQ!Q43+HOV!Q43+HILL!Q43 -> 8 | R43: 23
B44: 09600196 | D44: CONTROL | F44: =HLS!F44+HCQ!F44+HOV!F44+HILL!F44 -> 0 | G44: =HLS!G44+HCQ!G44+HOV!G44+HILL!G44 -> 0 | H44: =HLS!H44+HCQ!H44+HOV!H44+HILL!H44 -> 0 | I44: =HLS!I44+HCQ!I44+HOV!I44+HILL!I44 -> 0 | J44: =HLS!J44+HCQ!J44+HOV!J44+HILL!J44 -> 0 | K44: =HLS!K44+HCQ!K44+HOV!K44+HILL!K44 -> 0 | L44: =HLS!L44+HCQ!L44+HOV!L44+HILL!L44 -> 0 | M44: =HLS!M44+HCQ!M44+HOV!M44+HILL!M44 -> 0 | N44: =HLS!N44+HCQ!N44+HOV!N44+HILL!N44 -> 0 | O44: =HLS!O44+HCQ!O44+HOV!O44+HILL!O44 -> 0 | P44: =HLS!P44+HCQ!P44+HOV!P44+HILL!P44 -> 13 | Q44: =HLS!Q44+HCQ!Q44+HOV!Q44+HILL!Q44 -> 3 | R44: 16
B45: 09600198 | C45: TRASTORNOS TEMPOROMANDIBULARES Y DOLOR OROFACIAL | D45: CONSULTA NUEVA | F45: =HLS!F45+HCQ!F45+HOV!F45+HILL!F45 -> 35 | G45: =HLS!G45+HCQ!G45+HOV!G45+HILL!G45 -> 22 | H45: =HLS!H45+HCQ!H45+HOV!H45+HILL!H45 -> 34 | I45: =HLS!I45+HCQ!I45+HOV!I45+HILL!I45 -> 46 | J45: =HLS!J45+HCQ!J45+HOV!J45+HILL!J45 -> 44 | K45: =HLS!K45+HCQ!K45+HOV!K45+HILL!K45 -> 56 | L45: =HLS!L45+HCQ!L45+HOV!L45+HILL!L45 -> 27 | M45: =HLS!M45+HCQ!M45+HOV!M45+HILL!M45 -> 30 | N45: =HLS!N45+HCQ!N45+HOV!N45+HILL!N45 -> 31 | O45: =HLS!O45+HCQ!O45+HOV!O45+HILL!O45 -> 33 | P45: =HLS!P45+HCQ!P45+HOV!P45+HILL!P45 -> 22 | Q45: =HLS!Q45+HCQ!Q45+HOV!Q45+HILL!Q45 -> 24 | R45: 404
B46: 09600199 | D46: CONTROL | F46: =HLS!F46+HCQ!F46+HOV!F46+HILL!F46 -> 218 | G46: =HLS!G46+HCQ!G46+HOV!G46+HILL!G46 -> 119 | H46: =HLS!H46+HCQ!H46+HOV!H46+HILL!H46 -> 161 | I46: =HLS!I46+HCQ!I46+HOV!I46+HILL!I46 -> 171 | J46: =HLS!J46+HCQ!J46+HOV!J46+HILL!J46 -> 181 | K46: =HLS!K46+HCQ!K46+HOV!K46+HILL!K46 -> 178 | L46: =HLS!L46+HCQ!L46+HOV!L46+HILL!L46 -> 128 | M46: =HLS!M46+HCQ!M46+HOV!M46+HILL!M46 -> 139 | N46: =HLS!N46+HCQ!N46+HOV!N46+HILL!N46 -> 158 | O46: =HLS!O46+HCQ!O46+HOV!O46+HILL!O46 -> 129 | P46: =HLS!P46+HCQ!P46+HOV!P46+HILL!P46 -> 128 | Q46: =HLS!Q46+HCQ!Q46+HOV!Q46+HILL!Q46 -> 104 | R46: 1814
C47: TOTAL | D47: URGENCIA | F47: =SUM(F17:F18) -> 147 | G47: =SUM(G17:G18) -> 132 | H47: 185 | I47: 128 | J47: 161 | K47: 92 | L47: 101 | M47: 180 | N47: 101 | O47: 143 | P47: 109 | Q47: 93 | R47: =SUM(F47:Q47) -> 1572
D48: CONSULTA NUEVA | F48: =SUM(F19,F21,F23,F25,F27,F29,F31,F33,F35,F37,F39,F41,F43,F45) -> 1165 | G48: =SUM(G19,G21,G23,G25,G27,G29,G31,G33,G35,G37,G39,G41,G43,G45) -> 752 | H48: 1351 | I48: 1200 | J48: 1399 | K48: 1356 | L48: 1196 | M48: 1239 | N48: 1134 | O48: 1247 | P48: 1390 | Q48: 1079 | R48: =SUM(F48:Q48) -> 14508
D49: CONTROL | F49: =SUM(F20,F22,F24,F26,F28,F30,F32,F34,F36,F38,F40,F42,F44,F46) -> 4425 | G49: 2913 | H49: 4937 | I49: 4588 | J49: 5170 | K49: 4088 | L49: 3554 | M49: 4994 | N49: 3762 | O49: 4271 | P49: 4335 | Q49: 3982 | R49: 51019
C50: Fuente: REM A09, Sección I

Sheet HLS
A1: MINISTERIO DE SALUD
A2: SERVICIO DE SALUD COQUIMBO
A3: DEPARTAMENTO DE GESTIÓN, PLANIFICACIÓN Y CONTROL
A4: SUBDEPTO. DE ESTADÍSTICAS Y GESTIÓN DE LA INFORMACIÓN
A5: AÑO 2022
C8: INDICADOR 6.4: Índice de Ocupación Dental (IOD) del Servicio de Salud en el periodo.
C14: ESPECIALIDAD Y TIPO DE INGRESO O EGRESO | D14: Hospital de La Serena | R14: TOTAL
F15: Enero | G15: Febrero | H15: Marzo | I15: Abril | J15: Mayo | K15: Junio | L15: Julio | M15: Agosto | N15: Septiembre | O15: Octubre | P15: Noviembre | Q15: Diciembre
B17: 09240700 | C17: CONSULTAS DE URGENCIA | D17: CONSULTAS GES | F17: 48 | G17: 36 | H17: 37 | I17: 41 | J17: 38 | K17: 10 | L17: 18 | M17: 37 | N17: 17 | O17: 22 | P17: 22 | Q17: 11 | R17: =SUM(F17:Q17) -> 337
B18: 09600325 | D18: CONSULTA NO GES | F18: 27 | G18: 14 | H18: 16 | I18: 12 | J18: 11 | K18: 1 | L18: 12 | M18: 17 | N18: 2 | O18: 11 | P18: 3 | Q18: 6 | R18: =SUM(F18:Q18) -> 132
B19: 09600155 | C19: CIRUGÍA BUCAL | D19: CONSULTA NUEVA | F19: 16 | G19: 24 | H19: 25 | I19: 7 | J19: 36 | K19: 39 | L19: 36 | M19: 11 | N19: 45 | O19: 59 | P19: 59 | Q19: 35 | R19: 392
B20: 09600156 | D20: CONTROL | F20: 75 | G20: 92 | H20: 75 | I20: 25 | J20: 89 | K20: 93 | L20: 104 | M20: 132 | N20: 76 | O20: 92 | P20: 118 | Q20: 55 | R20: 1026
B21: 09600158 | C21: CIRUGÍA Y TRAUMATOLOGÍA MAXILOFACIAL | D21: CONSULTA NUEVA | F21: 45 | G21: 55 | H21: 53 | I21: 52 | J21: 61 | K21: 65 | L21: 42 | M21: 50 | N21: 67 | O21: 90 | P21: 90 | Q21: 73 | R21: 743
B22: 09600159 | D22: CONTROL | F22: 120 | G22: 151 | H22: 210 | I22: 229 | J22: 193 | K22: 193 | L22: 136 | M22: 165 | N22: 140 | O22: 201 | P22: 208 | Q22: 252 | R22: 2198
B23: 09600161 | C23: ENDODONCIA | D23: CONSULTA NUEVA | F23: 112 | G23: 88 | H23: 175 | I23: 124 | J23: 128 | K23: 139 | L23: 146 | M23: 104 | N23: 84 | O23: 82 | P23: 85 | Q23: 66 | R23: 1333
B24: 09600162 | D24: CONTROL | F24: 189 | G24: 153 | H24: 251 | I24: 172 | J24: 246 | K24: 180 | L24: 216 | M24: 223 | N24: 187 | O24: 226 | P24: 198 | Q24: 190 | R24: 2431
B25: 09600164 | C25: ODONTOPEDIATRÍA | D25: CONSULTA NUEVA | F25: 70 | G25: 30 | H25: 48 | I25: 48 | J25: 49 | K25: 42 | L25: 55 | M25: 36 | N25: 32 | O25: 44 | P25: 42 | Q25: 35 | R25: 531
B26: 09600165 | D26: CONTROL | F26: 227 | G26: 139 | H26: 226 | I26: 189 | J26: 225 | K26: 176 | L26: 233 | M26: 187 | N26: 191 | O26: 192 | P26: 248 | Q26: 245 | R26: 2478
B27: 09600167 | C27: OPERATORIA | D27: CONSULTA NUEVA | F27: 11 | G27: 5 | H27: 9 | I27: 6 | J27: 11 | K27: 15 | L27: 7 | M27: 6 | N27: 8 | O27: 6 | P27: 14 | Q27: 4 | R27: 102
B28: 09600168 | D28: CONTROL | F28: 52 | G28: 17 | H28: 35 | I28: 32 | J28: 50 | K28: 30 | L28: 20 | M28: 41 | N28: 30 | O28: 25 | P28: 26 | Q28: 15 | R28: 373
B29: 09600170 | C29: ORTODONCIA Y ORTOPEDIA DENTO MAXILOFACIAL: APARATOLOGÍA FIJA | D29: CONSULTA NUEVA | F29: 31 | G29: 12 | H29: 42 | I29: 38 | J29: 52 | K29: 52 | L29: 68 | M29: 10 | N29: 0 | O29: 0 | P29: 43 | Q29: 57 | R29: 405
B30: 09600171 | D30: CONTROL | F30: 216 | G30: 110 | H30: 309 | I30: 260 | J30: 327 | K30: 196 | L30: 345 | M30: 364 | N30: 82 | O30: 303 | P30: 292 | Q30: 336 | R30: 3140
B31: 09600173 | C31: ORTODONCIA Y ORTOPEDIA DENTO MAXILOFACIAL: APARATOLOGÍA REMOVIBLE | D31: CONSULTA NUEVA | F31: 14 | G31: 3 | H31: 10 | I31: 1 | J31: 8 | K31: 7 | L31: 10 | M31: 1 | N31: 0 | O31: 0 | P31: 16 | Q31: 13 | R31: 83
B32: 09600174 | D32: CONTROL | F32: 101 | G32: 38 | H32: 117 | I32: 105 | J32: 129 | K32: 73 | L32: 104 | M32: 126 | N32: 27 | O32: 116 | P32: 93 | Q32: 85 | R32: 1114
B33: 09600178 | C33: PERIODONCIA | D33: CONSULTA NUEVA | F33: 40 | G33: 43 | H33: 46 | I33: 33 | J33: 42 | K33: 102 | L33: 68 | M33: 66 | N33: 62 | O33: 81 | P33: 69 | Q33: 56 | R33: 708
B34: 09600179 | D34: CONTROL | F34: 181 | G34: 112 | H34: 214 | I34: 105 | J34: 158 | K34: 170 | L34: 118 | M34: 201 | N34: 131 | O34: 148 | P34: 158 | Q34: 129 | R34: 1825
B35: 09600181 | C35: REHABILITACIÓN: PRÓTESIS FIJA | D35: CONSULTA NUEVA | F35: 0 | G35: 4 | H35: 9 | I35: 2 | J35: 4 | K35: 6 | L35: 1 | M35: 0 | N35: 2 | O35: 5 | P35: 5 | Q35: 0 | R35: 38
B36: 09600182 | D36: CONTROL | F36: 7 | G36: 4 | H36: 10 | I36: 6 | J36: 10 | K36: 5 | L36: 5 | M36: 11 | N36: 10 | O36: 6 | P36: 8 | Q36: 8 | R36: 90
B37: 09600184 | C37: REHABILITACIÓN: PRÓTESIS REMOVIBLE | D37: CONSULTA NUEVA | F37: 62 | G37: 40 | H37: 63 | I37: 53 | J37: 54 | K37: 92 | L37: 65 | M37: 24 | N37: 25 | O37: 34 | P37: 78 | Q37: 28 | R37: 618
B38: 09600185 | D38: CONTROL | F38: 337 | G38: 203 | H38: 367 | I38: 406 | J38: 376 | K38: 264 | L38: 179 | M38: 464 | N38: 364 | O38: 287 | P38: 292 | Q38: 166 | R38: 3705
B39: 09600187 | C39: REHABILITACIÓN: PRÓTESIS IMPLANTOASISTIDA | D39: CONSULTA NUEVA | F39: 2 | G39: 0 | H39: 4 | I39: 2 | J39: 3 | K39: 0 | L39: 1 | M39: 5 | N39: 2 | O39: 1 | P39: 0 | Q39: 0 | R39: 20
B40: 09600188 | D40: CONTROL | F40: 27 | G40: 11 | H40: 28 | I40: 32 | J40: 33 | K40: 16 | L40: 3 | M40: 20 | N40: 14 | O40: 4 | P40: 14 | Q40: 11 | R40: 213
B41: 09600192 | C41: IMPLANTOLOGÍA BUCO MAXILOFACIAL | D41: CONSULTA NUEVA | F41: 14 | G41: 2 | H41: 14 | I41: 10 | J41: 14 | K41: 17 | L41: 1 | M41: 0 | N41: 2 | O41: 0 | P41: 0 | Q41: 0 | R41: 74
B42: 09600193 | D42: CONTROL | F42: 38 | G42: 3 | H42: 29 | I42: 17 | J42: 19 | K42: 18 | L42: 4 | M42: 19 | N42: 22 | O42: 5 | P42: 18 | Q42: 25 | R42: 217
B43: 09600195 | C43: PATOLOGÍA ORAL | D43: CONSULTA NUEVA | F43: 0 | G43: 0 | H43: 0 | I43: 0 | J43: 0 | K43: 0 | L43: 0 | M43: 0 | N43: 0 | O43: 0 | P43: 15 | Q43: 8 | R43: 23
B44: 09600196 | D44: CONTROL | F44: 0 | G44: 0 | H44: 0 | I44: 0 | J44: 0 | K44: 0 | L44: 0 | M44: 0 | N44: 0 | O44: 0 | P44: 13 | Q44: 3 | R44: 16
B45: 09600198 | C45: TRASTORNOS TEMPOROMANDIBULARES Y DOLOR OROFACIAL | D45: CONSULTA NUEVA | F45: 6 | G45: 8 | H45: 10 | I45: 10 | J45: 7 | K45: 15 | L45: 7 | M45: 11 | N45: 12 | O45: 14 | P45: 2 | Q45: 6 | R45: 108
B46: 09600199 | D46: CONTROL | F46: 36 | G46: 31 | H46: 38 | I46: 45 | J46: 46 | K46: 52 | L46: 34 | M46: 37 | N46: 41 | O46: 30 | P46: 20 | Q46: 17 | R46: 427
C47: TOTAL | D47: URGENCIA | F47: =SUM(F17:F18) -> 75 | G47: =SUM(G17:G18) -> 50 | H47: 53 | I47: 53 | J47: 49 | K47: 11 | L47: 30 | M47: 54 | N47: 19 | O47: 33 | P47: 25 | Q47: 17 | R47: =SUM(F47:Q47) -> 469
D48: CONSULTA NUEVA | F48: =SUM(F19,F21,F23,F25,F27,F29,F31,F33,F35,F37,F39,F41,F43,F45) -> 423 | G48: =SUM(G19,G21,G23,G25,G27,G29,G31,G33,G35,G37,G39,G41,G43,G45) -> 314 | H48: 508 | I48: 386 | J48: 469 | K48: 591 | L48: 507 | M48: 324 | N48: 341 | O48: 416 | P48: 518 | Q48: 381 | R48: =SUM(F48:Q48) -> 5178
D49: CONTROL | F49: =SUM(F20,F22,F24,F26,F28,F30,F32,F34,F36,F38,F40,F42,F44,F46) -> 1606 | G49: =SUM(G20,G22,G24,G26,G28,G30,G32,G34,G36,G38,G40,G42,G44,G46) -> 1064 | H49: 1909 | I49: 1623 | J49: 1901 | K49: 1466 | L49: 1501 | M49: 1990 | N49: 1315 | O49: 1635 | P49: 1706 | Q49: 1537 | R49: 19253
C50: Fuente: REM A09, Sección I

Sheet HCQ
A1: MINISTERIO DE SALUD
A2: SERVICIO DE SALUD COQUIMBO
A3: DEPARTAMENTO DE GESTIÓN, PLANIFICACIÓN Y CONTROL
A4: SUBDEPTO. DE ESTADÍSTICAS Y GESTIÓN DE LA INFORMACIÓN
A5: AÑO 2022
C8: INDICADOR 6.4: Índice de Ocupación Dental (IOD) del Servicio de Salud en el periodo.
C14: ESPECIALIDAD Y TIPO DE INGRESO O EGRESO | D14: Hospital de Coquimbo | R14: TOTAL
F15: Enero | G15: Febrero | H15: Marzo | I15: Abril | J15: Mayo | K15: Junio | L15: Julio | M15: Agosto | N15: Septiembre | O15: Octubre | P15: Noviembre | Q15: Diciembre
B17: 09240700 | C17: CONSULTAS DE URGENCIA | D17: CONSULTAS GES | F17: 3 | G17: 14 | H17: 19 | I17: 11 | J17: 23 | K17: 14 | L17: 8 | M17: 33 | N17: 6 | O17: 17 | P17: 19 | Q17: 9 | R17: =SUM(F17:Q17) -> 176
B18: 09600325 | D18: CONSULTA NO GES | F18: 17 | G18: 14 | H18: 37 | I18: 8 | J18: 19 | K18: 17 | L18: 21 | M18: 18 | N18: 10 | O18: 38 | P18: 14 | Q18: 7 | R18: =SUM(F18:Q18) -> 220
B19: 09600155 | C19: CIRUGÍA BUCAL | D19: CONSULTA NUEVA | F19: 0 | G19: 0 | H19: 0 | I19: 0 | J19: 0 | K19: 0 | L19: 0 | M19: 0 | N19: 0 | O19: 0 | P19: 0 | Q19: 0 | R19: 0
B20: 09600156 | D20: CONTROL | F20: 0 | G20: 0 | H20: 1 | I20: 0 | J20: 0 | K20: 0 | L20: 0 | M20: 0 | N20: 0 | O20: 0 | P20: 0 | Q20: 0 | R20: 1
B21: 09600158 | C21: CIRUGÍA Y TRAUMATOLOGÍA MAXILOFACIAL | D21: CONSULTA NUEVA | F21: 100 | G21: 76 | H21: 78 | I21: 118 | J21: 126 | K21: 83 | L21: 89 | M21: 88 | N21: 41 | O21: 76 | P21: 72 | Q21: 103 | R21: 1050
B22: 09600159 | D22: CONTROL | F22: 150 | G22: 130 | H22: 45 | I22: 93 | J22: 113 | K22: 104 | L22: 75 | M22: 130 | N22: 57 | O22: 97 | P22: 109 | Q22: 58 | R22: 1161
B23: 09600161 | C23: ENDODONCIA | D23: CONSULTA NUEVA | F23: 81 | G23: 19 | H23: 81 | I23: 80 | J23: 63 | K23: 57 | L23: 46 | M23: 56 | N23: 36 | O23: 40 | P23: 44 | Q23: 37 | R23: 640
B24: 09600162 | D24: CONTROL | F24: 183 | G24: 49 | H24: 148 | I24: 160 | J24: 157 | K24: 107 | L24: 100 | M24: 156 | N24: 131 | O24: 121 | P24: 100 | Q24: 82 | R24: 1494
B25: 09600164 | C25: ODONTOPEDIATRÍA | D25: CONSULTA NUEVA | F25: 27 | G25: 10 | H25: 38 | I25: 21 | J25: 29 | K25: 25 | L25: 13 | M25: 35 | N25: 27 | O25: 11 | P25: 30 | Q25: 19 | R25: 285
B26: 09600165 | D26: CONTROL | F26: 0 | G26: 59 | H26: 133 | I26: 106 | J26: 172 | K26: 121 | L26: 70 | M26: 165 | N26: 109 | O26: 104 | P26: 122 | Q26: 116 | R26: 1277
B27: 09600167 | C27: OPERATORIA | D27: CONSULTA NUEVA | F27: 0 | G27: 0 | H27: 0 | I27: 1 | J27: 1 | K27: 0 | L27: 0 | M27: 0 | N27: 1 | O27: 1 | P27: 3 | Q27: 0 | R27: 7
B28: 09600168 | D28: CONTROL | F28: 4 | G28: 0 | H28: 0 | I28: 7 | J28: 9 | K28: 7 | L28: 6 | M28: 3 | N28: 7 | O28: 6 | P28: 3 | Q28: 0 | R28: 52
B29: 09600170 | C29: ORTODONCIA Y ORTOPEDIA DENTO MAXILOFACIAL: APARATOLOGÍA FIJA | D29: CONSULTA NUEVA | F29: 39 | G29: 22 | H29: 43 | I29: 37 | J29: 31 | K29: 20 | L29: 3 | M29: 15 | N29: 27 | O29: 26 | P29: 27 | Q29: 15 | R29: 305
B30: 09600171 | D30: CONTROL | F30: 330 | G30: 180 | H30: 343 | I30: 279 | J30: 321 | K30: 248 | L30: 48 | M30: 167 | N30: 297 | O30: 293 | P30: 266 | Q30: 145 | R30: 2917
B31: 09600173 | C31: ORTODONCIA Y ORTOPEDIA DENTO MAXILOFACIAL: APARATOLOGÍA REMOVIBLE | D31: CONSULTA NUEVA | F31: 0 | G31: 0 | H31: 0 | I31: 0 | J31: 0 | K31: 0 | L31: 0 | M31: 0 | N31: 0 | O31: 0 | P31: 0 | Q31: 0 | R31: 0
B32: 09600174 | D32: CONTROL | F32: 0 | G32: 0 | H32: 0 | I32: 0 | J32: 0 | K32: 0 | L32: 0 | M32: 0 | N32: 0 | O32: 0 | P32: 0 | Q32: 0 | R32: 0
B33: 09600178 | C33: PERIODONCIA | D33: CONSULTA NUEVA | F33: 24 | G33: 15 | H33: 24 | I33: 28 | J33: 23 | K33: 16 | L33: 22 | M33: 31 | N33: 37 | O33: 32 | P33: 21 | Q33: 33 | R33: 306
B34: 09600179 | D34: CONTROL | F34: 61 | G34: 43 | H34: 76 | I34: 76 | J34: 81 | K34: 77 | L34: 52 | M34: 71 | N34: 52 | O34: 74 | P34: 56 | Q34: 58 | R34: 777
B35: 09600181 | C35: REHABILITACIÓN: PRÓTESIS FIJA | D35: CONSULTA NUEVA | F35: 0 | G35: 0 | H35: 0 | I35: 0 | J35: 0 | K35: 0 | L35: 0 | M35: 0 | N35: 0 | O35: 0 | P35: 0 | Q35: 0 | R35: 0
B36: 09600182 | D36: CONTROL | F36: 0 | G36: 0 | H36: 0 | I36: 0 | J36: 0 | K36: 0 | L36: 0 | M36: 0 | N36: 0 | O36: 0 | P36: 0 | Q36: 0 | R36: 0
B37: 09600184 | C37: REHABILITACIÓN: PRÓTESIS REMOVIBLE | D37: CONSULTA NUEVA | F37: 85 | G37: 21 | H37: 87 | I37: 68 | J37: 51 | K37: 57 | L37: 55 | M37: 39 | N37: 45 | O37: 52 | P37: 37 | Q37: 40 | R37: 637
B38: 09600185 | D38: CONTROL | F38: 489 | G38: 229 | H38: 386 | I38: 325 | J38: 211 | K38: 157 | L38: 148 | M38: 166 | N38: 105 | O38: 144 | P38: 136 | Q38: 135 | R38: 2631
B39: 09600187 | C39: REHABILITACIÓN: PRÓTESIS IMPLANTOASISTIDA | D39: CONSULTA NUEVA | F39: 0 | G39: 0 | H39: 0 | I39: 0 | J39: 0 | K39: 28 | L39: 26 | M39: 24 | N39: 27 | O39: 27 | P39: 32 | Q39: 15 | R39: 179
B40: 09600188 | D40: CONTROL | F40: 0 | G40: 0 | H40: 0 | I40: 0 | J40: 0 | K40: 70 | L40: 68 | M40: 72 | N40: 62 | O40: 54 | P40: 61 | Q40: 53 | R40: 440
B41: 09600192 | C41: IMPLANTOLOGÍA BUCO MAXILOFACIAL | D41: CONSULTA NUEVA | F41: 12 | G41: 12 | H41: 32 | I41: 15 | J41: 16 | K41: 0 | L41: 0 | M41: 0 | N41: 0 | O41: 3 | P41: 0 | Q41: 1 | R41: 91
B42: 09600193 | D42: CONTROL | F42: 28 | G42: 27 | H42: 95 | I42: 94 | J42: 89 | K42: 0 | L42: 0 | M42: 0 | N42: 0 | O42: 0 | P42: 0 | Q42: 0 | R42: 333
B43: 09600195 | C43: PATOLOGÍA ORAL | D43: CONSULTA NUEVA | F43: 0 | G43: 0 | H43: 0 | I43: 0 | J43: 0 | K43: 0 | L43: 0 | M43: 0 | N43: 0 | O43: 0 | P43: 0 | Q43: 0 | R43: 0
B44: 09600196 | D44: CONTROL | F44: 0 | G44: 0 | H44: 0 | I44: 0 | J44: 0 | K44: 0 | L44: 0 | M44: 0 | N44: 0 | O44: 0 | P44: 0 | Q44: 0 | R44: 0
B45: 09600198 | C45: TRASTORNOS TEMPOROMANDIBULARES Y DOLOR OROFACIAL | D45: CONSULTA NUEVA | F45: 29 | G45: 14 | H45: 24 | I45: 36 | J45: 37 | K45: 41 | L45: 20 | M45: 19 | N45: 19 | O45: 19 | P45: 20 | Q45: 18 | R45: 296
B46: 09600199 | D46: CONTROL | F46: 182 | G46: 88 | H46: 123 | I46: 126 | J46: 135 | K46: 126 | L46: 94 | M46: 102 | N46: 117 | O46: 99 | P46: 108 | Q46: 87 | R46: 1387
C47: TOTAL | D47: URGENCIA | F47: =SUM(F17:F18) -> 20 | G47: =SUM(G17:G18) -> 28 | H47: 56 | I47: 19 | J47: 42 | K47: 31 | L47: 29 | M47: 51 | N47: 16 | O47: 55 | P47: 33 | Q47: 16 | R47: =SUM(F47:Q47) -> 396
D48: CONSULTA NUEVA | F48: =SUM(F19,F21,F23,F25,F27,F29,F31,F33,F35,F37,F39,F41,F43,F45) -> 397 | G48: =SUM(G19,G21,G23,G25,G27,G29,G31,G33,G35,G37,G39,G41,G43,G45) -> 189 | H48: 407 | I48: 404 | J48: 377 | K48: 327 | L48: 274 | M48: 307 | N48: 260 | O48: 287 | P48: 286 | Q48: 281 | R48: =SUM(F48:Q48) -> 3796
D49: CONTROL | F49: =SUM(F20,F22,F24,F26,F28,F30,F32,F34,F36,F38,F40,F42,F44,F46) -> 1427 | G49: 805 | H49: 1350 | I49: 1266 | J49: 1288 | K49: 1017 | L49: 661 | M49: 1032 | N49: 937 | O49: 992 | P49: 961 | Q49: 734 | R49: 12470
C50: Fuente: REM A09, Sección I

Sheet HOV
A1: MINISTERIO DE SALUD
A2: SERVICIO DE SALUD COQUIMBO
A3: DEPARTAMENTO DE GESTIÓN, PLANIFICACIÓN Y CONTROL
A4: SUBDEPTO. DE ESTADÍSTICAS Y GESTIÓN DE LA INFORMACIÓN
A5: AÑO 2022
C8: INDICADOR 6.4: Índice de Ocupación Dental (IOD) del Servicio de Salud en el periodo.
C14: ESPECIALIDAD Y TIPO DE INGRESO O EGRESO | D14: Hospital de Ovalle | R14: TOTAL
F15: Enero | G15: Febrero | H15: Marzo | I15: Abril | J15: Mayo | K15: Junio | L15: Julio | M15: Agosto | N15: Septiembre | O15: Octubre | P15: Noviembre | Q15: Diciembre
B17: 09240700 | C17: CONSULTAS DE URGENCIA | D17: CONSULTAS GES | F17: 10 | G17: 6 | H17: 15 | I17: 13 | J17: 17 | K17: 9 | L17: 7 | M17: 13 | N17: 4 | O17: 11 | P17: 6 | Q17: 8 | R17: =SUM(F17:Q17) -> 119
B18: 09600325 | D18: CONSULTA NO GES | F18: 36 | G18: 16 | H18: 37 | I18: 25 | J18: 25 | K18: 24 | L18: 21 | M18: 29 | N18: 16 | O18: 24 | P18: 30 | Q18: 27 | R18: =SUM(F18:Q18) -> 310
B19: 09600155 | C19: CIRUGÍA BUCAL | D19: CONSULTA NUEVA | F19: 13 | G19: 4 | H19: 22 | I19: 20 | J19: 25 | K19: 10 | L19: 7 | M19: 25 | N19: 12 | O19: 28 | P19: 19 | Q19: 14 | R19: 199
B20: 09600156 | D20: CONTROL | F20: 31 | G20: 3 | H20: 44 | I20: 34 | J20: 51 | K20: 42 | L20: 13 | M20: 37 | N20: 30 | O20: 78 | P20: 68 | Q20: 82 | R20: 513
B21: 09600158 | C21: CIRUGÍA Y TRAUMATOLOGÍA MAXILOFACIAL | D21: CONSULTA NUEVA | F21: 38 | G21: 28 | H21: 68 | I21: 40 | J21: 58 | K21: 42 | L21: 47 | M21: 21 | N21: 29 | O21: 23 | P21: 33 | Q21: 37 | R21: 464
B22: 09600159 | D22: CONTROL | F22: 85 | G22: 64 | H22: 176 | I22: 137 | J22: 142 | K22: 94 | L22: 143 | M22: 100 | N22: 88 | O22: 90 | P22: 92 | Q22: 116 | R22: 1327
B23: 09600161 | C23: ENDODONCIA | D23: CONSULTA NUEVA | F23: 47 | G23: 16 | H23: 115 | I23: 81 | J23: 125 | K23: 107 | L23: 86 | M23: 128 | N23: 105 | O23: 115 | P23: 93 | Q23: 96 | R23: 1114
B24: 09600162 | D24: CONTROL | F24: 71 | G24: 28 | H24: 164 | I24: 148 | J24: 217 | K24: 158 | L24: 163 | M24: 225 | N24: 183 | O24: 224 | P24: 212 | Q24: 214 | R24: 2007
B25: 09600164 | C25: ODONTOPEDIATRÍA | D25: CONSULTA NUEVA | F25: 8 | G25: 6 | H25: 19 | I25: 23 | J25: 28 | K25: 24 | L25: 10 | M25: 29 | N25: 19 | O25: 24 | P25: 23 | Q25: 30 | R25: 243
B26: 09600165 | D26: CONTROL | F26: 38 | G26: 32 | H26: 120 | I26: 121 | J26: 127 | K26: 101 | L26: 58 | M26: 141 | N26: 93 | O26: 141 | P26: 141 | Q26: 142 | R26: 1255
B27: 09600167 | C27: OPERATORIA | D27: CONSULTA NUEVA | F27: 16 | G27: 14 | H27: 9 | I27: 5 | J27: 10 | K27: 4 | L27: 15 | M27: 5 | N27: 7 | O27: 0 | P27: 9 | Q27: 5 | R27: 99
B28: 09600168 | D28: CONTROL | F28: 68 | G28: 64 | H28: 51 | I28: 64 | J28: 70 | K28: 33 | L28: 58 | M28: 75 | N28: 52 | O28: 23 | P28: 41 | Q28: 58 | R28: 657
B29: 09600170 | C29: ORTODONCIA Y ORTOPEDIA DENTO MAXILOFACIAL: APARATOLOGÍA FIJA | D29: CONSULTA NUEVA | F29: 12 | G29: 17 | H29: 7 | I29: 20 | J29: 10 | K29: 19 | L29: 15 | M29: 15 | N29: 13 | O29: 11 | P29: 10 | Q29: 15 | R29: 164
B30: 09600171 | D30: CONTROL | F30: 95 | G30: 142 | H30: 166 | I30: 161 | J30: 158 | K30: 183 | L30: 97 | M30: 208 | N30: 168 | O30: 165 | P30: 179 | Q30: 190 | R30: 1912
B31: 09600173 | C31: ORTODONCIA Y ORTOPEDIA DENTO MAXILOFACIAL: APARATOLOGÍA REMOVIBLE | D31: CONSULTA NUEVA | F31: 1 | G31: 0 | H31: 0 | I31: 0 | J31: 0 | K31: 1 | L31: 2 | M31: 1 | N31: 0 | O31: 2 | P31: 1 | Q31: 1 | R31: 9
B32: 09600174 | D32: CONTROL | F32: 8 | G32: 9 | H32: 10 | I32: 9 | J32: 6 | K32: 9 | L32: 5 | M32: 11 | N32: 4 | O32: 7 | P32: 7 | Q32: 9 | R32: 94
B33: 09600178 | C33: PERIODONCIA | D33: CONSULTA NUEVA | F33: 21 | G33: 3 | H33: 10 | I33: 34 | J33: 36 | K33: 18 | L33: 29 | M33: 29 | N33: 34 | O33: 31 | P33: 29 | Q33: 39 | R33: 313
B34: 09600179 | D34: CONTROL | F34: 48 | G34: 12 | H34: 21 | I34: 84 | J34: 107 | K34: 74 | L34: 74 | M34: 103 | N34: 105 | O34: 103 | P34: 68 | Q34: 86 | R34: 885
B35: 09600181 | C35: REHABILITACIÓN: PRÓTESIS FIJA | D35: CONSULTA NUEVA | F35: 0 | G35: 0 | H35: 0 | I35: 0 | J35: 1 | K35: 1 | L35: 1 | M35: 4 | N35: 2 | O35: 0 | P35: 0 | Q35: 3 | R35: 12
B36: 09600182 | D36: CONTROL | F36: 5 | G36: 11 | H36: 7 | I36: 5 | J36: 9 | K36: 7 | L36: 6 | M36: 17 | N36: 12 | O36: 4 | P36: 8 | Q36: 15 | R36: 106
B37: 09600184 | C37: REHABILITACIÓN: PRÓTESIS REMOVIBLE | D37: CONSULTA NUEVA | F37: 43 | G37: 56 | H37: 35 | I37: 58 | J37: 41 | K37: 35 | L37: 27 | M37: 38 | N37: 25 | O37: 20 | P37: 20 | Q37: 32 | R37: 430
B38: 09600185 | D38: CONTROL | F38: 156 | G38: 115 | H38: 162 | I38: 207 | J38: 213 | K38: 161 | L38: 134 | M38: 201 | N38: 122 | O38: 87 | P38: 126 | Q38: 177 | R38: 1861
B39: 09600187 | C39: REHABILITACIÓN: PRÓTESIS IMPLANTOASISTIDA | D39: CONSULTA NUEVA | F39: 2 | G39: 0 | H39: 5 | I39: 3 | J39: 3 | K39: 3 | L39: 2 | M39: 3 | N39: 2 | O39: 2 | P39: 5 | Q39: 2 | R39: 32
B40: 09600188 | D40: CONTROL | F40: 7 | G40: 12 | H40: 19 | I40: 20 | J40: 21 | K40: 15 | L40: 8 | M40: 15 | N40: 14 | O40: 28 | P40: 25 | Q40: 29 | R40: 213
B41: 09600192 | C41: IMPLANTOLOGÍA BUCO MAXILOFACIAL | D41: CONSULTA NUEVA | F41: 3 | G41: 0 | H41: 1 | I41: 4 | J41: 3 | K41: 3 | L41: 0 | M41: 3 | N41: 0 | O41: 3 | P41: 1 | Q41: 1 | R41: 22
B42: 09600193 | D42: CONTROL | F42: 17 | G42: 1 | H42: 6 | I42: 6 | J42: 14 | K42: 8 | L42: 3 | M42: 16 | N42: 4 | O42: 11 | P42: 5 | Q42: 6 | R42: 97
B43: 09600195 | C43: PATOLOGÍA ORAL | D43: CONSULTA NUEVA | F43: 0 | G43: 0 | H43: 0 | I43: 0 | J43: 0 | K43: 0 | L43: 0 | M43: 0 | N43: 0 | O43: 0 | P43: 0 | Q43: 0 | R43: 0
B44: 09600196 | D44: CONTROL | F44: 0 | G44: 0 | H44: 0 | I44: 0 | J44: 0 | K44: 0 | L44: 0 | M44: 0 | N44: 0 | O44: 0 | P44: 0 | Q44: 0 | R44: 0
B45: 09600198 | C45: TRASTORNOS TEMPOROMANDIBULARES Y DOLOR OROFACIAL | D45: CONSULTA NUEVA | F45: 0 | G45: 0 | H45: 0 | I45: 0 | J45: 0 | K45: 0 | L45: 0 | M45: 0 | N45: 0 | O45: 0 | P45: 0 | Q45: 0 | R45: 0
B46: 09600199 | D46: CONTROL | F46: 0 | G46: 0 | H46: 0 | I46: 0 | J46: 0 | K46: 0 | L46: 0 | M46: 0 | N46: 0 | O46: 0 | P46: 0 | Q46: 0 | R46: 0
C47: TOTAL | D47: URGENCIA | F47: =SUM(F17:F18) -> 46 | G47: =SUM(G17:G18) -> 22 | H47: 52 | I47: 38 | J47: 42 | K47: 33 | L47: 28 | M47: 42 | N47: 20 | O47: 35 | P47: 36 | Q47: 35 | R47: =SUM(F47:Q47) -> 429
D48: CONSULTA NUEVA | F48: =SUM(F19,F21,F23,F25,F27,F29,F31,F33,F35,F37,F39,F41,F43,F45) -> 204 | G48: =SUM(G19,G21,G23,G25,G27,G29,G31,G33,G35,G37,G39,G41,G43,G45) -> 144 | H48: 291 | I48: 288 | J48: 340 | K48: 267 | L48: 241 | M48: 301 | N48: 248 | O48: 259 | P48: 243 | Q48: 275 | R48: =SUM(F48:Q48) -> 3101
D49: CONTROL | F49: =SUM(F20,F22,F24,F26,F28,F30,F32,F34,F36,F38,F40,F42,F44,F46) -> 629 | G49: 493 | H49: 946 | I49: 996 | J49: 1135 | K49: 885 | L49: 762 | M49: 1149 | N49: 875 | O49: 961 | P49: 972 | Q49: 1124 | R49: 10927
C50: Fuente: REM A09, Sección I

Sheet HILL
A1: MINISTERIO DE SALUD
A2: SERVICIO DE SALUD COQUIMBO
A3: DEPARTAMENTO DE GESTIÓN, PLANIFICACIÓN Y CONTROL
A4: SUBDEPTO. DE ESTADÍSTICAS Y GESTIÓN DE LA INFORMACIÓN
A5: AÑO 2022
C8: INDICADOR 6.4: Índice de Ocupación Dental (IOD) del Servicio de Salud en el periodo.
C14: ESPECIALIDAD Y TIPO DE INGRESO O EGRESO | D14: Hospital de Illapel | R14: TOTAL
F15: Enero | G15: Febrero | H15: Marzo | I15: Abril | J15: Mayo | K15: Junio | L15: Julio | M15: Agosto | N15: Septiembre | O15: Octubre | P15: Noviembre | Q15: Diciembre
B17: 09240700 | C17: CONSULTAS DE URGENCIA | D17: CONSULTAS GES | F17: 0 | G17: 0 | H17: 0 | I17: 0 | J17: 0 | K17: 0 | L17: 0 | M17: 0 | N17: 0 | O17: 0 | P17: 0 | Q17: 0 | R17: =SUM(F17:Q17) -> 0
B18: 09600325 | D18: CONSULTA NO GES | F18: 6 | G18: 32 | H18: 24 | I18: 18 | J18: 28 | K18: 17 | L18: 14 | M18: 33 | N18: 46 | O18: 20 | P18: 15 | Q18: 25 | R18: =SUM(F18:Q18) -> 278
B19: 09600155 | C19: CIRUGÍA BUCAL | D19: CONSULTA NUEVA | F19: 0 | G19: 0 | H19: 0 | I19: 0 | J19: 0 | K19: 0 | L19: 0 | M19: 0 | N19: 0 | O19: 0 | P19: 0 | Q19: 0 | R19: 0
B20: 09600156 | D20: CONTROL | F20: 0 | G20: 0 | H20: 0 | I20: 0 | J20: 0 | K20: 0 | L20: 0 | M20: 0 | N20: 0 | O20: 0 | P20: 0 | Q20: 0 | R20: 0
B21: 09600158 | C21: CIRUGÍA Y TRAUMATOLOGÍA MAXILOFACIAL | D21: CONSULTA NUEVA | F21: 18 | G21: 12 | H21: 14 | I21: 26 | J21: 55 | K21: 28 | L21: 45 | M21: 82 | N21: 31 | O21: 26 | P21: 41 | Q21: 16 | R21: 394
B22: 09600159 | D22: CONTROL | F22: 122 | G22: 98 | H22: 86 | I22: 126 | J22: 130 | K22: 128 | L22: 103 | M22: 118 | N22: 83 | O22: 178 | P22: 127 | Q22: 44 | R22: 1343
B23: 09600161 | C23: ENDODONCIA | D23: CONSULTA NUEVA | F23: 45 | G23: 44 | H23: 30 | I23: 53 | J23: 84 | K23: 79 | L23: 70 | M23: 101 | N23: 48 | O23: 72 | P23: 54 | Q23: 43 | R23: 723
B24: 09600162 | D24: CONTROL | F24: 88 | G24: 70 | H24: 51 | I24: 105 | J24: 119 | K24: 118 | L24: 122 | M24: 155 | N24: 120 | O24: 142 | P24: 110 | Q24: 112 | R24: 1312
B25: 09600164 | C25: ODONTOPEDIATRÍA | D25: CONSULTA NUEVA | F25: 6 | G25: 11 | H25: 18 | I25: 12 | J25: 31 | K25: 27 | L25: 16 | M25: 50 | N25: 33 | O25: 12 | P25: 26 | Q25: 11 | R25: 253
B26: 09600165 | D26: CONTROL | F26: 111 | G26: 96 | H26: 118 | I26: 189 | J26: 241 | K26: 161 | L26: 104 | M26: 108 | N26: 168 | O26: 95 | P26: 169 | Q26: 132 | R26: 1692
B27: 09600167 | C27: OPERATORIA | D27: CONSULTA NUEVA | F27: 0 | G27: 0 | H27: 0 | I27: 0 | J27: 0 | K27: 0 | L27: 0 | M27: 0 | N27: 0 | O27: 0 | P27: 0 | Q27: 0 | R27: 0
B28: 09600168 | D28: CONTROL | F28: 0 | G28: 0 | H28: 0 | I28: 0 | J28: 0 | K28: 0 | L28: 0 | M28: 0 | N28: 0 | O28: 0 | P28: 0 | Q28: 0 | R28: 0
B29: 09600170 | C29: ORTODONCIA Y ORTOPEDIA DENTO MAXILOFACIAL: APARATOLOGÍA FIJA | D29: CONSULTA NUEVA | F29: 10 | G29: 0 | H29: 4 | I29: 0 | J29: 9 | K29: 1 | L29: 1 | M29: 17 | N29: 84 | O29: 41 | P29: 61 | Q29: 34 | R29: 262
B30: 09600171 | D30: CONTROL | F30: 271 | G30: 211 | H30: 238 | I30: 93 | J30: 209 | K30: 208 | L30: 181 | M30: 264 | N30: 147 | O30: 158 | P30: 158 | Q30: 110 | R30: 2248
B31: 09600173 | C31: ORTODONCIA Y ORTOPEDIA DENTO MAXILOFACIAL: APARATOLOGÍA REMOVIBLE | D31: CONSULTA NUEVA | F31: 1 | G31: 4 | H31: 11 | I31: 0 | J31: 3 | K31: 0 | L31: 1 | M31: 9 | N31: 8 | O31: 19 | P31: 0 | Q31: 0 | R31: 56
B32: 09600174 | D32: CONTROL | F32: 7 | G32: 6 | H32: 5 | I32: 1 | J32: 5 | K32: 10 | L32: 5 | M32: 7 | N32: 5 | O32: 3 | P32: 6 | Q32: 1 | R32: 61
B33: 09600178 | C33: PERIODONCIA | D33: CONSULTA NUEVA | F33: 39 | G33: 18 | H33: 46 | I33: 13 | J33: 13 | K33: 30 | L33: 26 | M33: 25 | N33: 67 | O33: 25 | P33: 59 | Q33: 10 | R33: 371
B34: 09600179 | D34: CONTROL | F34: 109 | G34: 31 | H34: 167 | I34: 133 | J34: 111 | K34: 67 | L34: 68 | M34: 98 | N34: 94 | O34: 87 | P34: 85 | Q34: 166 | R34: 1216
B35: 09600181 | C35: REHABILITACIÓN: PRÓTESIS FIJA | D35: CONSULTA NUEVA | F35: 0 | G35: 0 | H35: 0 | I35: 0 | J35: 0 | K35: 0 | L35: 0 | M35: 0 | N35: 0 | O35: 0 | P35: 0 | Q35: 0 | R35: 0
B36: 09600182 | D36: CONTROL | F36: 0 | G36: 0 | H36: 0 | I36: 0 | J36: 0 | K36: 0 | L36: 0 | M36: 0 | N36: 0 | O36: 0 | P36: 0 | Q36: 0 | R36: 0
B37: 09600184 | C37: REHABILITACIÓN: PRÓTESIS REMOVIBLE | D37: CONSULTA NUEVA | F37: 22 | G37: 16 | H37: 22 | I37: 18 | J37: 18 | K37: 6 | L37: 15 | M37: 23 | N37: 14 | O37: 90 | P37: 102 | Q37: 28 | R37: 374
B38: 09600185 | D38: CONTROL | F38: 55 | G38: 39 | H38: 67 | I38: 56 | J38: 31 | K38: 28 | L38: 47 | M38: 73 | N38: 18 | O38: 20 | P38: 41 | Q38: 22 | R38: 497
B39: 09600187 | C39: REHABILITACIÓN: PRÓTESIS IMPLANTOASISTIDA | D39: CONSULTA NUEVA | F39: 0 | G39: 0 | H39: 0 | I39: 0 | J39: 0 | K39: 0 | L39: 0 | M39: 0 | N39: 0 | O39: 0 | P39: 0 | Q39: 0 | R39: 0
B40: 09600188 | D40: CONTROL | F40: 0 | G40: 0 | H40: 0 | I40: 0 | J40: 0 | K40: 0 | L40: 0 | M40: 0 | N40: 0 | O40: 0 | P40: 0 | Q40: 0 | R40: 0
B41: 09600192 | C41: IMPLANTOLOGÍA BUCO MAXILOFACIAL | D41: CONSULTA NUEVA | F41: 0 | G41: 0 | H41: 0 | I41: 0 | J41: 0 | K41: 0 | L41: 0 | M41: 0 | N41: 0 | O41: 0 | P41: 0 | Q41: 0 | R41: 0
B42: 09600193 | D42: CONTROL | F42: 0 | G42: 0 | H42: 0 | I42: 0 | J42: 0 | K42: 0 | L42: 0 | M42: 0 | N42: 0 | O42: 0 | P42: 0 | Q42: 0 | R42: 0
B43: 09600195 | C43: PATOLOGÍA ORAL | D43: CONSULTA NUEVA | F43: 0 | G43: 0 | H43: 0 | I43: 0 | J43: 0 | K43: 0 | L43: 0 | M43: 0 | N43: 0 | O43: 0 | P43: 0 | Q43: 0 | R43: 0
B44: 09600196 | D44: CONTROL | F44: 0 | G44: 0 | H44: 0 | I44: 0 | J44: 0 | K44: 0 | L44: 0 | M44: 0 | N44: 0 | O44: 0 | P44: 0 | Q44: 0 | R44: 0
B45: 09600198 | C45: TRASTORNOS TEMPOROMANDIBULARES Y DOLOR OROFACIAL | D45: CONSULTA NUEVA | F45: 0 | G45: 0 | H45: 0 | I45: 0 | J45: 0 | K45: 0 | L45: 0 | M45: 0 | N45: 0 | O45: 0 | P45: 0 | Q45: 0 | R45: 0
B46: 09600199 | D46: CONTROL | F46: 0 | G46: 0 | H46: 0 | I46: 0 | J46: 0 | K46: 0 | L46: 0 | M46: 0 | N46: 0 | O46: 0 | P46: 0 | Q46: 0 | R46: 0
C47: TOTAL | D47: URGENCIA | F47: =SUM(F17:F18) -> 6 | G47: =SUM(G17:G18) -> 32 | H47: 24 | I47: 18 | J47: 28 | K47: 17 | L47: 14 | M47: 33 | N47: 46 | O47: 20 | P47: 15 | Q47: 25 | R47: =SUM(F47:Q47) -> 278
D48: CONSULTA NUEVA | F48: =SUM(F19,F21,F23,F25,F27,F29,F31,F33,F35,F37,F39,F41,F43,F45) -> 141 | G48: =SUM(G19,G21,G23,G25,G27,G29,G31,G33,G35,G37,G39,G41,G43,G45) -> 105 | H48: 145 | I48: 122 | J48: 213 | K48: 171 | L48: 174 | M48: 307 | N48: 285 | O48: 285 | P48: 343 | Q48: 142 | R48: =SUM(F48:Q48) -> 2433
D49: CONTROL | F49: =SUM(F20,F22,F24,F26,F28,F30,F32,F34,F36,F38,F40,F42,F44,F46) -> 763 | G49: 551 | H49: 732 | I49: 703 | J49: 846 | K49: 720 | L49: 630 | M49: 823 | N49: 635 | O49: 683 | P49: 696 | Q49: 587 | R49: 8369
C50: Fuente: REM A09, Sección I

Sheet Hoja Dinámica (hidden)
A1: MINISTERIO DE SALUD
A2: SERVICIO DE SALUD COQUIMBO
A3: DEPARTAMENTO DE GESTIÓN, PLANIFICACIÓN Y CONTROL
A4: SUBDEPTO. DE ESTADÍSTICAS Y GESTIÓN DE LA INFORMACIÓN
A5: AÑO 2022
C8: INDICADOR 6.4: Índice de Ocupación Dental (IOD) del Servicio de Salud en el periodo.
C14: ESPECIALIDAD Y TIPO DE INGRESO O EGRESO | D14: Hospital De La Serena | R14: TOTAL
F15: Enero | G15: Febrero | H15: Marzo | I15: Abril | J15: Mayo | K15: Junio | L15: Julio | M15: Agosto | N15: Septiembre | O15: Octubre | P15: Noviembre | Q15: Diciembre
B17: 09240700 | C17: CONSULTAS DE URGENCIA | D17: CONSULTAS GES | F17: =IFERROR(VLOOKUP($B17,Filtro_DIC!$A$3:$N$35,2,FALSE),0) -> 48 | G17: =IFERROR(VLOOKUP($B17,Filtro_DIC!$A$3:$N$35,3,FALSE),0) -> 36 | H17: =IFERROR(VLOOKUP($B17,Filtro_DIC!$A$3:$N$35,4,FALSE),0) -> 37 | I17: =IFERROR(VLOOKUP($B17,Filtro_DIC!$A$3:$N$35,5,FALSE),0) -> 41 | J17: =IFERROR(VLOOKUP($B17,Filtro_DIC!$A$3:$N$35,6,FALSE),0) -> 38 | K17: =IFERROR(VLOOKUP($B17,Filtro_DIC!$A$3:$N$35,7,FALSE),0) -> 10 | L17: =IFERROR(VLOOKUP($B17,Filtro_DIC!$A$3:$N$35,8,FALSE),0) -> 18 | M17: =IFERROR(VLOOKUP($B17,Filtro_DIC!$A$3:$N$35,9,FALSE),0) -> 37 | N17: =IFERROR(VLOOKUP($B17,Filtro_DIC!$A$3:$N$35,10,FALSE),0) -> 17 | O17: =IFERROR(VLOOKUP($B17,Filtro_DIC!$A$3:$N$35,11,FALSE),0) -> 22 | P17: =IFERROR(VLOOKUP($B17,Filtro_DIC!$A$3:$N$35,12,FALSE),0) -> 22 | Q17: =IFERROR(VLOOKUP($B17,Filtro_DIC!$A$3:$N$35,13,FALSE),0) -> 11 | R17: =SUM(F17:Q17) -> 337
B18: 09600325 | D18: CONSULTA NO GES | F18: =IFERROR(VLOOKUP($B18,Filtro_DIC!$A$3:$N$35,2,FALSE),0) -> 27 | G18: =IFERROR(VLOOKUP($B18,Filtro_DIC!$A$3:$N$35,3,FALSE),0) -> 14 | H18: =IFERROR(VLOOKUP($B18,Filtro_DIC!$A$3:$N$35,4,FALSE),0) -> 16 | I18: =IFERROR(VLOOKUP($B18,Filtro_DIC!$A$3:$N$35,5,FALSE),0) -> 12 | J18: =IFERROR(VLOOKUP($B18,Filtro_DIC!$A$3:$N$35,6,FALSE),0) -> 11 | K18: =IFERROR(VLOOKUP($B18,Filtro_DIC!$A$3:$N$35,7,FALSE),0) -> 1 | L18: =IFERROR(VLOOKUP($B18,Filtro_DIC!$A$3:$N$35,8,FALSE),0) -> 12 | M18: =IFERROR(VLOOKUP($B18,Filtro_DIC!$A$3:$N$35,9,FALSE),0) -> 17 | N18: =IFERROR(VLOOKUP($B18,Filtro_DIC!$A$3:$N$35,10,FALSE),0) -> 2 | O18: =IFERROR(VLOOKUP($B18,Filtro_DIC!$A$3:$N$35,11,FALSE),0) -> 11 | P18: =IFERROR(VLOOKUP($B18,Filtro_DIC!$A$3:$N$35,12,FALSE),0) -> 3 | Q18: =IFERROR(VLOOKUP($B18,Filtro_DIC!$A$3:$N$35,13,FALSE),0) -> 6 | R18: =SUM(F18:Q18) -> 132
B19: 09600155 | C19: CIRUGÍA BUCAL | D19: CONSULTA NUEVA | F19: =IFERROR(VLOOKUP($B19,Filtro_DIC!$A$3:$N$35,2,FALSE),0) -> 16 | G19: =IFERROR(VLOOKUP($B19,Filtro_DIC!$A$3:$N$35,3,FALSE),0) -> 24 | H19: =IFERROR(VLOOKUP($B19,Filtro_DIC!$A$3:$N$35,4,FALSE),0) -> 25 | I19: =IFERROR(VLOOKUP($B19,Filtro_DIC!$A$3:$N$35,5,FALSE),0) -> 7 | J19: =IFERROR(VLOOKUP($B19,Filtro_DIC!$A$3:$N$35,6,FALSE),0) -> 36 | K19: =IFERROR(VLOOKUP($B19,Filtro_DIC!$A$3:$N$35,7,FALSE),0) -> 39 | L19: =IFERROR(VLOOKUP($B19,Filtro_DIC!$A$3:$N$35,8,FALSE),0) -> 36 | M19: =IFERROR(VLOOKUP($B19,Filtro_DIC!$A$3:$N$35,9,FALSE),0) -> 11 | N19: =IFERROR(VLOOKUP($B19,Filtro_DIC!$A$3:$N$35,10,FALSE),0) -> 45 | O19: =IFERROR(VLOOKUP($B19,Filtro_DIC!$A$3:$N$35,11,FALSE),0) -> 59 | P19: =IFERROR(VLOOKUP($B19,Filtro_DIC!$A$3:$N$35,12,FALSE),0) -> 59 | Q19: =IFERROR(VLOOKUP($B19,Filtro_DIC!$A$3:$N$35,13,FALSE),0) -> 35 | R19: 392
B20: 09600156 | D20: CONTROL | F20: =IFERROR(VLOOKUP($B20,Filtro_DIC!$A$3:$N$35,2,FALSE),0) -> 75 | G20: =IFERROR(VLOOKUP($B20,Filtro_DIC!$A$3:$N$35,3,FALSE),0) -> 92 | H20: =IFERROR(VLOOKUP($B20,Filtro_DIC!$A$3:$N$35,4,FALSE),0) -> 75 | I20: =IFERROR(VLOOKUP($B20,Filtro_DIC!$A$3:$N$35,5,FALSE),0) -> 25 | J20: =IFERROR(VLOOKUP($B20,Filtro_DIC!$A$3:$N$35,6,FALSE),0) -> 89 | K20: =IFERROR(VLOOKUP($B20,Filtro_DIC!$A$3:$N$35,7,FALSE),0) -> 93 | L20: =IFERROR(VLOOKUP($B20,Filtro_DIC!$A$3:$N$35,8,FALSE),0) -> 104 | M20: =IFERROR(VLOOKUP($B20,Filtro_DIC!$A$3:$N$35,9,FALSE),0) -> 132 | N20: =IFERROR(VLOOKUP($B20,Filtro_DIC!$A$3:$N$35,10,FALSE),0) -> 76 | O20: =IFERROR(VLOOKUP($B20,Filtro_DIC!$A$3:$N$35,11,FALSE),0) -> 92 | P20: =IFERROR(VLOOKUP($B20,Filtro_DIC!$A$3:$N$35,12,FALSE),0) -> 118 | Q20: =IFERROR(VLOOKUP($B20,Filtro_DIC!$A$3:$N$35,13,FALSE),0) -> 55 | R20: 1026
B21: 09600158 | C21: CIRUGÍA Y TRAUMATOLOGÍA MAXILOFACIAL | D21: CONSULTA NUEVA | F21: =IFERROR(VLOOKUP($B21,Filtro_DIC!$A$3:$N$35,2,FALSE),0) -> 45 | G21: =IFERROR(VLOOKUP($B21,Filtro_DIC!$A$3:$N$35,3,FALSE),0) -> 55 | H21: =IFERROR(VLOOKUP($B21,Filtro_DIC!$A$3:$N$35,4,FALSE),0) -> 53 | I21: =IFERROR(VLOOKUP($B21,Filtro_DIC!$A$3:$N$35,5,FALSE),0) -> 52 | J21: =IFERROR(VLOOKUP($B21,Filtro_DIC!$A$3:$N$35,6,FALSE),0) -> 61 | K21: =IFERROR(VLOOKUP($B21,Filtro_DIC!$A$3:$N$35,7,FALSE),0) -> 65 | L21: =IFERROR(VLOOKUP($B21,Filtro_DIC!$A$3:$N$35,8,FALSE),0) -> 42 | M21: =IFERROR(VLOOKUP($B21,Filtro_DIC!$A$3:$N$35,9,FALSE),0) -> 50 | N21: =IFERROR(VLOOKUP($B21,Filtro_DIC!$A$3:$N$35,10,FALSE),0) -> 67 | O21: =IFERROR(VLOOKUP($B21,Filtro_DIC!$A$3:$N$35,11,FALSE),0) -> 90 | P21: =IFERROR(VLOOKUP($B21,Filtro_DIC!$A$3:$N$35,12,FALSE),0) -> 90 | Q21: =IFERROR(VLOOKUP($B21,Filtro_DIC!$A$3:$N$35,13,FALSE),0) -> 73 | R21: 743
B22: 09600159 | D22: CONTROL | F22: =IFERROR(VLOOKUP($B22,Filtro_DIC!$A$3:$N$35,2,FALSE),0) -> 120 | G22: =IFERROR(VLOOKUP($B22,Filtro_DIC!$A$3:$N$35,3,FALSE),0) -> 151 | H22: =IFERROR(VLOOKUP($B22,Filtro_DIC!$A$3:$N$35,4,FALSE),0) -> 210 | I22: =IFERROR(VLOOKUP($B22,Filtro_DIC!$A$3:$N$35,5,FALSE),0) -> 229 | J22: =IFERROR(VLOOKUP($B22,Filtro_DIC!$A$3:$N$35,6,FALSE),0) -> 193 | K22: =IFERROR(VLOOKUP($B22,Filtro_DIC!$A$3:$N$35,7,FALSE),0) -> 193 | L22: =IFERROR(VLOOKUP($B22,Filtro_DIC!$A$3:$N$35,8,FALSE),0) -> 136 | M22: =IFERROR(VLOOKUP($B22,Filtro_DIC!$A$3:$N$35,9,FALSE),0) -> 165 | N22: =IFERROR(VLOOKUP($B22,Filtro_DIC!$A$3:$N$35,10,FALSE),0) -> 140 | O22: =IFERROR(VLOOKUP($B22,Filtro_DIC!$A$3:$N$35,11,FALSE),0) -> 201 | P22: =IFERROR(VLOOKUP($B22,Filtro_DIC!$A$3:$N$35,12,FALSE),0) -> 208 | Q22: =IFERROR(VLOOKUP($B22,Filtro_DIC!$A$3:$N$35,13,FALSE),0) -> 252 | R22: 2198
B23: 09600161 | C23: ENDODONCIA | D23: CONSULTA NUEVA | F23: =IFERROR(VLOOKUP($B23,Filtro_DIC!$A$3:$N$35,2,FALSE),0) -> 112 | G23: =IFERROR(VLOOKUP($B23,Filtro_DIC!$A$3:$N$35,3,FALSE),0) -> 88 | H23: =IFERROR(VLOOKUP($B23,Filtro_DIC!$A$3:$N$35,4,FALSE),0) -> 175 | I23: =IFERROR(VLOOKUP($B23,Filtro_DIC!$A$3:$N$35,5,FALSE),0) -> 124 | J23: =IFERROR(VLOOKUP($B23,Filtro_DIC!$A$3:$N$35,6,FALSE),0) -> 128 | K23: =IFERROR(VLOOKUP($B23,Filtro_DIC!$A$3:$N$35,7,FALSE),0) -> 139 | L23: =IFERROR(VLOOKUP($B23,Filtro_DIC!$A$3:$N$35,8,FALSE),0) -> 146 | M23: =IFERROR(VLOOKUP($B23,Filtro_DIC!$A$3:$N$35,9,FALSE),0) -> 104 | N23: =IFERROR(VLOOKUP($B23,Filtro_DIC!$A$3:$N$35,10,FALSE),0) -> 84 | O23: =IFERROR(VLOOKUP($B23,Filtro_DIC!$A$3:$N$35,11,FALSE),0) -> 82 | P23: =IFERROR(VLOOKUP($B23,Filtro_DIC!$A$3:$N$35,12,FALSE),0) -> 85 | Q23: =IFERROR(VLOOKUP($B23,Filtro_DIC!$A$3:$N$35,13,FALSE),0) -> 66 | R23: 1333
B24: 09600162 | D24: CONTROL | F24: =IFERROR(VLOOKUP($B24,Filtro_DIC!$A$3:$N$35,2,FALSE),0) -> 189 | G24: =IFERROR(VLOOKUP($B24,Filtro_DIC!$A$3:$N$35,3,FALSE),0) -> 153 | H24: =IFERROR(VLOOKUP($B24,Filtro_DIC!$A$3:$N$35,4,FALSE),0) -> 251 | I24: =IFERROR(VLOOKUP($B24,Filtro_DIC!$A$3:$N$35,5,FALSE),0) -> 172 | J24: =IFERROR(VLOOKUP($B24,Filtro_DIC!$A$3:$N$35,6,FALSE),0) -> 246 | K24: =IFERROR(VLOOKUP($B24,Filtro_DIC!$A$3:$N$35,7,FALSE),0) -> 180 | L24: =IFERROR(VLOOKUP($B24,Filtro_DIC!$A$3:$N$35,8,FALSE),0) -> 216 | M24: =IFERROR(VLOOKUP($B24,Filtro_DIC!$A$3:$N$35,9,FALSE),0) -> 223 | N24: =IFERROR(VLOOKUP($B24,Filtro_DIC!$A$3:$N$35,10,FALSE),0) -> 187 | O24: =IFERROR(VLOOKUP($B24,Filtro_DIC!$A$3:$N$35,11,FALSE),0) -> 226 | P24: =IFERROR(VLOOKUP($B24,Filtro_DIC!$A$3:$N$35,12,FALSE),0) -> 198 | Q24: =IFERROR(VLOOKUP($B24,Filtro_DIC!$A$3:$N$35,13,FALSE),0) -> 190 | R24: 2431
B25: 09600164 | C25: ODONTOPEDIATRÍA | D25: CONSULTA NUEVA | F25: =IFERROR(VLOOKUP($B25,Filtro_DIC!$A$3:$N$35,2,FALSE),0) -> 70 | G25: =IFERROR(VLOOKUP($B25,Filtro_DIC!$A$3:$N$35,3,FALSE),0) -> 30 | H25: =IFERROR(VLOOKUP($B25,Filtro_DIC!$A$3:$N$35,4,FALSE),0) -> 48 | I25: =IFERROR(VLOOKUP($B25,Filtro_DIC!$A$3:$N$35,5,FALSE),0) -> 48 | J25: =IFERROR(VLOOKUP($B25,Filtro_DIC!$A$3:$N$35,6,FALSE),0) -> 49 | K25: =IFERROR(VLOOKUP($B25,Filtro_DIC!$A$3:$N$35,7,FALSE),0) -> 42 | L25: =IFERROR(VLOOKUP($B25,Filtro_DIC!$A$3:$N$35,8,FALSE),0) -> 55 | M25: =IFERROR(VLOOKUP($B25,Filtro_DIC!$A$3:$N$35,9,FALSE),0) -> 36 | N25: =IFERROR(VLOOKUP($B25,Filtro_DIC!$A$3:$N$35,10,FALSE),0) -> 32 | O25: =IFERROR(VLOOKUP($B25,Filtro_DIC!$A$3:$N$35,11,FALSE),0) -> 44 | P25: =IFERROR(VLOOKUP($B25,Filtro_DIC!$A$3:$N$35,12,FALSE),0) -> 42 | Q25: =IFERROR(VLOOKUP($B25,Filtro_DIC!$A$3:$N$35,13,FALSE),0) -> 35 | R25: 531
B26: 09600165 | D26: CONTROL | F26: =IFERROR(VLOOKUP($B26,Filtro_DIC!$A$3:$N$35,2,FALSE),0) -> 227 | G26: =IFERROR(VLOOKUP($B26,Filtro_DIC!$A$3:$N$35,3,FALSE),0) -> 139 | H26: =IFERROR(VLOOKUP($B26,Filtro_DIC!$A$3:$N$35,4,FALSE),0) -> 226 | I26: =IFERROR(VLOOKUP($B26,Filtro_DIC!$A$3:$N$35,5,FALSE),0) -> 189 | J26: =IFERROR(VLOOKUP($B26,Filtro_DIC!$A$3:$N$35,6,FALSE),0) -> 225 | K26: =IFERROR(VLOOKUP($B26,Filtro_DIC!$A$3:$N$35,7,FALSE),0) -> 176 | L26: =IFERROR(VLOOKUP($B26,Filtro_DIC!$A$3:$N$35,8,FALSE),0) -> 233 | M26: =IFERROR(VLOOKUP($B26,Filtro_DIC!$A$3:$N$35,9,FALSE),0) -> 187 | N26: =IFERROR(VLOOKUP($B26,Filtro_DIC!$A$3:$N$35,10,FALSE),0) -> 191 | O26: =IFERROR(VLOOKUP($B26,Filtro_DIC!$A$3:$N$35,11,FALSE),0) -> 192 | P26: =IFERROR(VLOOKUP($B26,Filtro_DIC!$A$3:$N$35,12,FALSE),0) -> 248 | Q26: =IFERROR(VLOOKUP($B26,Filtro_DIC!$A$3:$N$35,13,FALSE),0) -> 245 | R26: 2478
B27: 09600167 | C27: OPERATORIA | D27: CONSULTA NUEVA | F27: =IFERROR(VLOOKUP($B27,Filtro_DIC!$A$3:$N$35,2,FALSE),0) -> 11 | G27: =IFERROR(VLOOKUP($B27,Filtro_DIC!$A$3:$N$35,3,FALSE),0) -> 5 | H27: =IFERROR(VLOOKUP($B27,Filtro_DIC!$A$3:$N$35,4,FALSE),0) -> 9 | I27: =IFERROR(VLOOKUP($B27,Filtro_DIC!$A$3:$N$35,5,FALSE),0) -> 6 | J27: =IFERROR(VLOOKUP($B27,Filtro_DIC!$A$3:$N$35,6,FALSE),0) -> 11 | K27: =IFERROR(VLOOKUP($B27,Filtro_DIC!$A$3:$N$35,7,FALSE),0) -> 15 | L27: =IFERROR(VLOOKUP($B27,Filtro_DIC!$A$3:$N$35,8,FALSE),0) -> 7 | M27: =IFERROR(VLOOKUP($B27,Filtro_DIC!$A$3:$N$35,9,FALSE),0) -> 6 | N27: =IFERROR(VLOOKUP($B27,Filtro_DIC!$A$3:$N$35,10,FALSE),0) -> 8 | O27: =IFERROR(VLOOKUP($B27,Filtro_DIC!$A$3:$N$35,11,FALSE),0) -> 6 | P27: =IFERROR(VLOOKUP($B27,Filtro_DIC!$A$3:$N$35,12,FALSE),0) -> 14 | Q27: =IFERROR(VLOOKUP($B27,Filtro_DIC!$A$3:$N$35,13,FALSE),0) -> 4 | R27: 102
B28: 09600168 | D28: CONTROL | F28: =IFERROR(VLOOKUP($B28,Filtro_DIC!$A$3:$N$35,2,FALSE),0) -> 52 | G28: =IFERROR(VLOOKUP($B28,Filtro_DIC!$A$3:$N$35,3,FALSE),0) -> 17 | H28: =IFERROR(VLOOKUP($B28,Filtro_DIC!$A$3:$N$35,4,FALSE),0) -> 35 | I28: =IFERROR(VLOOKUP($B28,Filtro_DIC!$A$3:$N$35,5,FALSE),0) -> 32 | J28: =IFERROR(VLOOKUP($B28,Filtro_DIC!$A$3:$N$35,6,FALSE),0) -> 50 | K28: =IFERROR(VLOOKUP($B28,Filtro_DIC!$A$3:$N$35,7,FALSE),0) -> 30 | L28: =IFERROR(VLOOKUP($B28,Filtro_DIC!$A$3:$N$35,8,FALSE),0) -> 20 | M28: =IFERROR(VLOOKUP($B28,Filtro_DIC!$A$3:$N$35,9,FALSE),0) -> 41 | N28: =IFERROR(VLOOKUP($B28,Filtro_DIC!$A$3:$N$35,10,FALSE),0) -> 30 | O28: =IFERROR(VLOOKUP($B28,Filtro_DIC!$A$3:$N$35,11,FALSE),0) -> 25 | P28: =IFERROR(VLOOKUP($B28,Filtro_DIC!$A$3:$N$35,12,FALSE),0) -> 26 | Q28: =IFERROR(VLOOKUP($B28,Filtro_DIC!$A$3:$N$35,13,FALSE),0) -> 15 | R28: 373
B29: 09600170 | C29: ORTODONCIA Y ORTOPEDIA DENTO MAXILOFACIAL: APARATOLOGÍA FIJA | D29: CONSULTA NUEVA | F29: =IFERROR(VLOOKUP($B29,Filtro_DIC!$A$3:$N$35,2,FALSE),0) -> 31 | G29: =IFERROR(VLOOKUP($B29,Filtro_DIC!$A$3:$N$35,3,FALSE),0) -> 12 | H29: =IFERROR(VLOOKUP($B29,Filtro_DIC!$A$3:$N$35,4,FALSE),0) -> 42 | I29: =IFERROR(VLOOKUP($B29,Filtro_DIC!$A$3:$N$35,5,FALSE),0) -> 38 | J29: =IFERROR(VLOOKUP($B29,Filtro_DIC!$A$3:$N$35,6,FALSE),0) -> 52 | K29: =IFERROR(VLOOKUP($B29,Filtro_DIC!$A$3:$N$35,7,FALSE),0) -> 52 | L29: =IFERROR(VLOOKUP($B29,Filtro_DIC!$A$3:$N$35,8,FALSE),0) -> 68 | M29: =IFERROR(VLOOKUP($B29,Filtro_DIC!$A$3:$N$35,9,FALSE),0) -> 10 | N29: =IFERROR(VLOOKUP($B29,Filtro_DIC!$A$3:$N$35,10,FALSE),0) -> 0 | O29: =IFERROR(VLOOKUP($B29,Filtro_DIC!$A$3:$N$35,11,FALSE),0) -> 0 | P29: =IFERROR(VLOOKUP($B29,Filtro_DIC!$A$3:$N$35,12,FALSE),0) -> 43 | Q29: =IFERROR(VLOOKUP($B29,Filtro_DIC!$A$3:$N$35,13,FALSE),0) -> 57 | R29: 405
B30: 09600171 | D30: CONTROL | F30: =IFERROR(VLOOKUP($B30,Filtro_DIC!$A$3:$N$35,2,FALSE),0) -> 216 | G30: =IFERROR(VLOOKUP($B30,Filtro_DIC!$A$3:$N$35,3,FALSE),0) -> 110 | H30: =IFERROR(VLOOKUP($B30,Filtro_DIC!$A$3:$N$35,4,FALSE),0) -> 309 | I30: =IFERROR(VLOOKUP($B30,Filtro_DIC!$A$3:$N$35,5,FALSE),0) -> 260 | J30: =IFERROR(VLOOKUP($B30,Filtro_DIC!$A$3:$N$35,6,FALSE),0) -> 327 | K30: =IFERROR(VLOOKUP($B30,Filtro_DIC!$A$3:$N$35,7,FALSE),0) -> 196 | L30: =IFERROR(VLOOKUP($B30,Filtro_DIC!$A$3:$N$35,8,FALSE),0) -> 345 | M30: =IFERROR(VLOOKUP($B30,Filtro_DIC!$A$3:$N$35,9,FALSE),0) -> 364 | N30: =IFERROR(VLOOKUP($B30,Filtro_DIC!$A$3:$N$35,10,FALSE),0) -> 82 | O30: =IFERROR(VLOOKUP($B30,Filtro_DIC!$A$3:$N$35,11,FALSE),0) -> 303 | P30: =IFERROR(VLOOKUP($B30,Filtro_DIC!$A$3:$N$35,12,FALSE),0) -> 292 | Q30: =IFERROR(VLOOKUP($B30,Filtro_DIC!$A$3:$N$35,13,FALSE),0) -> 336 | R30: 3140
B31: 09600173 | C31: ORTODONCIA Y ORTOPEDIA DENTO MAXILOFACIAL: APARATOLOGÍA REMOVIBLE | D31: CONSULTA NUEVA | F31: =IFERROR(VLOOKUP($B31,Filtro_DIC!$A$3:$N$35,2,FALSE),0) -> 14 | G31: =IFERROR(VLOOKUP($B31,Filtro_DIC!$A$3:$N$35,3,FALSE),0) -> 3 | H31: =IFERROR(VLOOKUP($B31,Filtro_DIC!$A$3:$N$35,4,FALSE),0) -> 10 | I31: =IFERROR(VLOOKUP($B31,Filtro_DIC!$A$3:$N$35,5,FALSE),0) -> 1 | J31: =IFERROR(VLOOKUP($B31,Filtro_DIC!$A$3:$N$35,6,FALSE),0) -> 8 | K31: =IFERROR(VLOOKUP($B31,Filtro_DIC!$A$3:$N$35,7,FALSE),0) -> 7 | L31: =IFERROR(VLOOKUP($B31,Filtro_DIC!$A$3:$N$35,8,FALSE),0) -> 10 | M31: =IFERROR(VLOOKUP($B31,Filtro_DIC!$A$3:$N$35,9,FALSE),0) -> 1 | N31: =IFERROR(VLOOKUP($B31,Filtro_DIC!$A$3:$N$35,10,FALSE),0) -> 0 | O31: =IFERROR(VLOOKUP($B31,Filtro_DIC!$A$3:$N$35,11,FALSE),0) -> 0 | P31: =IFERROR(VLOOKUP($B31,Filtro_DIC!$A$3:$N$35,12,FALSE),0) -> 16 | Q31: =IFERROR(VLOOKUP($B31,Filtro_DIC!$A$3:$N$35,13,FALSE),0) -> 13 | R31: 83
B32: 09600174 | D32: CONTROL | F32: =IFERROR(VLOOKUP($B32,Filtro_DIC!$A$3:$N$35,2,FALSE),0) -> 101 | G32: =IFERROR(VLOOKUP($B32,Filtro_DIC!$A$3:$N$35,3,FALSE),0) -> 38 | H32: =IFERROR(VLOOKUP($B32,Filtro_DIC!$A$3:$N$35,4,FALSE),0) -> 117 | I32: =IFERROR(VLOOKUP($B32,Filtro_DIC!$A$3:$N$35,5,FALSE),0) -> 105 | J32: =IFERROR(VLOOKUP($B32,Filtro_DIC!$A$3:$N$35,6,FALSE),0) -> 129 | K32: =IFERROR(VLOOKUP($B32,Filtro_DIC!$A$3:$N$35,7,FALSE),0) -> 73 | L32: =IFERROR(VLOOKUP($B32,Filtro_DIC!$A$3:$N$35,8,FALSE),0) -> 104 | M32: =IFERROR(VLOOKUP($B32,Filtro_DIC!$A$3:$N$35,9,FALSE),0) -> 126 | N32: =IFERROR(VLOOKUP($B32,Filtro_DIC!$A$3:$N$35,10,FALSE),0) -> 27 | O32: =IFERROR(VLOOKUP($B32,Filtro_DIC!$A$3:$N$35,11,FALSE),0) -> 116 | P32: =IFERROR(VLOOKUP($B32,Filtro_DIC!$A$3:$N$35,12,FALSE),0) -> 93 | Q32: =IFERROR(VLOOKUP($B32,Filtro_DIC!$A$3:$N$35,13,FALSE),0) -> 85 | R32: 1114
B33: 09600178 | C33: PERIODONCIA | D33: CONSULTA NUEVA | F33: =IFERROR(VLOOKUP($B33,Filtro_DIC!$A$3:$N$35,2,FALSE),0) -> 40 | G33: =IFERROR(VLOOKUP($B33,Filtro_DIC!$A$3:$N$35,3,FALSE),0) -> 43 | H33: =IFERROR(VLOOKUP($B33,Filtro_DIC!$A$3:$N$35,4,FALSE),0) -> 46 | I33: =IFERROR(VLOOKUP($B33,Filtro_DIC!$A$3:$N$35,5,FALSE),0) -> 33 | J33: =IFERROR(VLOOKUP($B33,Filtro_DIC!$A$3:$N$35,6,FALSE),0) -> 42 | K33: =IFERROR(VLOOKUP($B33,Filtro_DIC!$A$3:$N$35,7,FALSE),0) -> 102 | L33: =IFERROR(VLOOKUP($B33,Filtro_DIC!$A$3:$N$35,8,FALSE),0) -> 68 | M33: =IFERROR(VLOOKUP($B33,Filtro_DIC!$A$3:$N$35,9,FALSE),0) -> 66 | N33: =IFERROR(VLOOKUP($B33,Filtro_DIC!$A$3:$N$35,10,FALSE),0) -> 62 | O33: =IFERROR(VLOOKUP($B33,Filtro_DIC!$A$3:$N$35,11,FALSE),0) -> 81 | P33: =IFERROR(VLOOKUP($B33,Filtro_DIC!$A$3:$N$35,12,FALSE),0) -> 69 | Q33: =IFERROR(VLOOKUP($B33,Filtro_DIC!$A$3:$N$35,13,FALSE),0) -> 56 | R33: 708
B34: 09600179 | D34: CONTROL | F34: =IFERROR(VLOOKUP($B34,Filtro_DIC!$A$3:$N$35,2,FALSE),0) -> 181 | G34: =IFERROR(VLOOKUP($B34,Filtro_DIC!$A$3:$N$35,3,FALSE),0) -> 112 | H34: =IFERROR(VLOOKUP($B34,Filtro_DIC!$A$3:$N$35,4,FALSE),0) -> 214 | I34: =IFERROR(VLOOKUP($B34,Filtro_DIC!$A$3:$N$35,5,FALSE),0) -> 105 | J34: =IFERROR(VLOOKUP($B34,Filtro_DIC!$A$3:$N$35,6,FALSE),0) -> 158 | K34: =IFERROR(VLOOKUP($B34,Filtro_DIC!$A$3:$N$35,7,FALSE),0) -> 170 | L34: =IFERROR(VLOOKUP($B34,Filtro_DIC!$A$3:$N$35,8,FALSE),0) -> 118 | M34: =IFERROR(VLOOKUP($B34,Filtro_DIC!$A$3:$N$35,9,FALSE),0) -> 201 | N34: =IFERROR(VLOOKUP($B34,Filtro_DIC!$A$3:$N$35,10,FALSE),0) -> 131 | O34: =IFERROR(VLOOKUP($B34,Filtro_DIC!$A$3:$N$35,11,FALSE),0) -> 148 | P34: =IFERROR(VLOOKUP($B34,Filtro_DIC!$A$3:$N$35,12,FALSE),0) -> 158 | Q34: =IFERROR(VLOOKUP($B34,Filtro_DIC!$A$3:$N$35,13,FALSE),0) -> 129 | R34: 1825
B35: 09600181 | C35: REHABILITACIÓN: PRÓTESIS FIJA | D35: CONSULTA NUEVA | F35: =IFERROR(VLOOKUP($B35,Filtro_DIC!$A$3:$N$35,2,FALSE),0) -> 0 | G35: =IFERROR(VLOOKUP($B35,Filtro_DIC!$A$3:$N$35,3,FALSE),0) -> 4 | H35: =IFERROR(VLOOKUP($B35,Filtro_DIC!$A$3:$N$35,4,FALSE),0) -> 9 | I35: =IFERROR(VLOOKUP($B35,Filtro_DIC!$A$3:$N$35,5,FALSE),0) -> 2 | J35: =IFERROR(VLOOKUP($B35,Filtro_DIC!$A$3:$N$35,6,FALSE),0) -> 4 | K35: =IFERROR(VLOOKUP($B35,Filtro_DIC!$A$3:$N$35,7,FALSE),0) -> 6 | L35: =IFERROR(VLOOKUP($B35,Filtro_DIC!$A$3:$N$35,8,FALSE),0) -> 1 | M35: =IFERROR(VLOOKUP($B35,Filtro_DIC!$A$3:$N$35,9,FALSE),0) -> 0 | N35: =IFERROR(VLOOKUP($B35,Filtro_DIC!$A$3:$N$35,10,FALSE),0) -> 2 | O35: =IFERROR(VLOOKUP($B35,Filtro_DIC!$A$3:$N$35,11,FALSE),0) -> 5 | P35: =IFERROR(VLOOKUP($B35,Filtro_DIC!$A$3:$N$35,12,FALSE),0) -> 5 | Q35: =IFERROR(VLOOKUP($B35,Filtro_DIC!$A$3:$N$35,13,FALSE),0) -> 0 | R35: 38
B36: 09600182 | D36: CONTROL | F36: =IFERROR(VLOOKUP($B36,Filtro_DIC!$A$3:$N$35,2,FALSE),0) -> 7 | G36: =IFERROR(VLOOKUP($B36,Filtro_DIC!$A$3:$N$35,3,FALSE),0) -> 4 | H36: =IFERROR(VLOOKUP($B36,Filtro_DIC!$A$3:$N$35,4,FALSE),0) -> 10 | I36: =IFERROR(VLOOKUP($B36,Filtro_DIC!$A$3:$N$35,5,FALSE),0) -> 6 | J36: =IFERROR(VLOOKUP($B36,Filtro_DIC!$A$3:$N$35,6,FALSE),0) -> 10 | K36: =IFERROR(VLOOKUP($B36,Filtro_DIC!$A$3:$N$35,7,FALSE),0) -> 5 | L36: =IFERROR(VLOOKUP($B36,Filtro_DIC!$A$3:$N$35,8,FALSE),0) -> 5 | M36: =IFERROR(VLOOKUP($B36,Filtro_DIC!$A$3:$N$35,9,FALSE),0) -> 11 | N36: =IFERROR(VLOOKUP($B36,Filtro_DIC!$A$3:$N$35,10,FALSE),0) -> 10 | O36: =IFERROR(VLOOKUP($B36,Filtro_DIC!$A$3:$N$35,11,FALSE),0) -> 6 | P36: =IFERROR(VLOOKUP($B36,Filtro_DIC!$A$3:$N$35,12,FALSE),0) -> 8 | Q36: =IFERROR(VLOOKUP($B36,Filtro_DIC!$A$3:$N$35,13,FALSE),0) -> 8 | R36: 90
B37: 09600184 | C37: REHABILITACIÓN: PRÓTESIS REMOVIBLE | D37: CONSULTA NUEVA | F37: =IFERROR(VLOOKUP($B37,Filtro_DIC!$A$3:$N$35,2,FALSE),0) -> 62 | G37: =IFERROR(VLOOKUP($B37,Filtro_DIC!$A$3:$N$35,3,FALSE),0) -> 40 | H37: =IFERROR(VLOOKUP($B37,Filtro_DIC!$A$3:$N$35,4,FALSE),0) -> 63 | I37: =IFERROR(VLOOKUP($B37,Filtro_DIC!$A$3:$N$35,5,FALSE),0) -> 53 | J37: =IFERROR(VLOOKUP($B37,Filtro_DIC!$A$3:$N$35,6,FALSE),0) -> 54 | K37: =IFERROR(VLOOKUP($B37,Filtro_DIC!$A$3:$N$35,7,FALSE),0) -> 92 | L37: =IFERROR(VLOOKUP($B37,Filtro_DIC!$A$3:$N$35,8,FALSE),0) -> 65 | M37: =IFERROR(VLOOKUP($B37,Filtro_DIC!$A$3:$N$35,9,FALSE),0) -> 24 | N37: =IFERROR(VLOOKUP($B37,Filtro_DIC!$A$3:$N$35,10,FALSE),0) -> 25 | O37: =IFERROR(VLOOKUP($B37,Filtro_DIC!$A$3:$N$35,11,FALSE),0) -> 34 | P37: =IFERROR(VLOOKUP($B37,Filtro_DIC!$A$3:$N$35,12,FALSE),0) -> 78 | Q37: =IFERROR(VLOOKUP($B37,Filtro_DIC!$A$3:$N$35,13,FALSE),0) -> 28 | R37: 618
B38: 09600185 | D38: CONTROL | F38: =IFERROR(VLOOKUP($B38,Filtro_DIC!$A$3:$N$35,2,FALSE),0) -> 337 | G38: =IFERROR(VLOOKUP($B38,Filtro_DIC!$A$3:$N$35,3,FALSE),0) -> 203 | H38: =IFERROR(VLOOKUP($B38,Filtro_DIC!$A$3:$N$35,4,FALSE),0) -> 367 | I38: =IFERROR(VLOOKUP($B38,Filtro_DIC!$A$3:$N$35,5,FALSE),0) -> 406 | J38: =IFERROR(VLOOKUP($B38,Filtro_DIC!$A$3:$N$35,6,FALSE),0) -> 376 | K38: =IFERROR(VLOOKUP($B38,Filtro_DIC!$A$3:$N$35,7,FALSE),0) -> 264 | L38: =IFERROR(VLOOKUP($B38,Filtro_DIC!$A$3:$N$35,8,FALSE),0) -> 179 | M38: =IFERROR(VLOOKUP($B38,Filtro_DIC!$A$3:$N$35,9,FALSE),0) -> 464 | N38: =IFERROR(VLOOKUP($B38,Filtro_DIC!$A$3:$N$35,10,FALSE),0) -> 364 | O38: =IFERROR(VLOOKUP($B38,Filtro_DIC!$A$3:$N$35,11,FALSE),0) -> 287 | P38: =IFERROR(VLOOKUP($B38,Filtro_DIC!$A$3:$N$35,12,FALSE),0) -> 292 | Q38: =IFERROR(VLOOKUP($B38,Filtro_DIC!$A$3:$N$35,13,FALSE),0) -> 166 | R38: 3705
B39: 09600187 | C39: REHABILITACIÓN: PRÓTESIS IMPLANTOASISTIDA | D39: CONSULTA NUEVA | F39: =IFERROR(VLOOKUP($B39,Filtro_DIC!$A$3:$N$35,2,FALSE),0) -> 2 | G39: =IFERROR(VLOOKUP($B39,Filtro_DIC!$A$3:$N$35,3,FALSE),0) -> 0 | H39: =IFERROR(VLOOKUP($B39,Filtro_DIC!$A$3:$N$35,4,FALSE),0) -> 4 | I39: =IFERROR(VLOOKUP($B39,Filtro_DIC!$A$3:$N$35,5,FALSE),0) -> 2 | J39: =IFERROR(VLOOKUP($B39,Filtro_DIC!$A$3:$N$35,6,FALSE),0) -> 3 | K39: =IFERROR(VLOOKUP($B39,Filtro_DIC!$A$3:$N$35,7,FALSE),0) -> 0 | L39: =IFERROR(VLOOKUP($B39,Filtro_DIC!$A$3:$N$35,8,FALSE),0) -> 1 | M39: =IFERROR(VLOOKUP($B39,Filtro_DIC!$A$3:$N$35,9,FALSE),0) -> 5 | N39: =IFERROR(VLOOKUP($B39,Filtro_DIC!$A$3:$N$35,10,FALSE),0) -> 2 | O39: =IFERROR(VLOOKUP($B39,Filtro_DIC!$A$3:$N$35,11,FALSE),0) -> 1 | P39: =IFERROR(VLOOKUP($B39,Filtro_DIC!$A$3:$N$35,12,FALSE),0) -> 0 | Q39: =IFERROR(VLOOKUP($B39,Filtro_DIC!$A$3:$N$35,13,FALSE),0) -> 0 | R39: 20
B40: 09600188 | D40: CONTROL | F40: =IFERROR(VLOOKUP($B40,Filtro_DIC!$A$3:$N$35,2,FALSE),0) -> 27 | G40: =IFERROR(VLOOKUP($B40,Filtro_DIC!$A$3:$N$35,3,FALSE),0) -> 11 | H40: =IFERROR(VLOOKUP($B40,Filtro_DIC!$A$3:$N$35,4,FALSE),0) -> 28 | I40: =IFERROR(VLOOKUP($B40,Filtro_DIC!$A$3:$N$35,5,FALSE),0) -> 32 | J40: =IFERROR(VLOOKUP($B40,Filtro_DIC!$A$3:$N$35,6,FALSE),0) -> 33 | K40: =IFERROR(VLOOKUP($B40,Filtro_DIC!$A$3:$N$35,7,FALSE),0) -> 16 | L40: =IFERROR(VLOOKUP($B40,Filtro_DIC!$A$3:$N$35,8,FALSE),0) -> 3 | M40: =IFERROR(VLOOKUP($B40,Filtro_DIC!$A$3:$N$35,9,FALSE),0) -> 20 | N40: =IFERROR(VLOOKUP($B40,Filtro_DIC!$A$3:$N$35,10,FALSE),0) -> 14 | O40: =IFERROR(VLOOKUP($B40,Filtro_DIC!$A$3:$N$35,11,FALSE),0) -> 4 | P40: =IFERROR(VLOOKUP($B40,Filtro_DIC!$A$3:$N$35,12,FALSE),0) -> 14 | Q40: =IFERROR(VLOOKUP($B40,Filtro_DIC!$A$3:$N$35,13,FALSE),0) -> 11 | R40: 213
B41: 09600192 | C41: IMPLANTOLOGÍA BUCO MAXILOFACIAL | D41: CONSULTA NUEVA | F41: =IFERROR(VLOOKUP($B41,Filtro_DIC!$A$3:$N$35,2,FALSE),0) -> 14 | G41: =IFERROR(VLOOKUP($B41,Filtro_DIC!$A$3:$N$35,3,FALSE),0) -> 2 | H41: =IFERROR(VLOOKUP($B41,Filtro_DIC!$A$3:$N$35,4,FALSE),0) -> 14 | I41: =IFERROR(VLOOKUP($B41,Filtro_DIC!$A$3:$N$35,5,FALSE),0) -> 10 | J41: =IFERROR(VLOOKUP($B41,Filtro_DIC!$A$3:$N$35,6,FALSE),0) -> 14 | K41: =IFERROR(VLOOKUP($B41,Filtro_DIC!$A$3:$N$35,7,FALSE),0) -> 17 | L41: =IFERROR(VLOOKUP($B41,Filtro_DIC!$A$3:$N$35,8,FALSE),0) -> 1 | M41: =IFERROR(VLOOKUP($B41,Filtro_DIC!$A$3:$N$35,9,FALSE),0) -> 0 | N41: =IFERROR(VLOOKUP($B41,Filtro_DIC!$A$3:$N$35,10,FALSE),0) -> 2 | O41: =IFERROR(VLOOKUP($B41,Filtro_DIC!$A$3:$N$35,11,FALSE),0) -> 0 | P41: =IFERROR(VLOOKUP($B41,Filtro_DIC!$A$3:$N$35,12,FALSE),0) -> 0 | Q41: =IFERROR(VLOOKUP($B41,Filtro_DIC!$A$3:$N$35,13,FALSE),0) -> 0 | R41: 74
B42: 09600193 | D42: CONTROL | F42: =IFERROR(VLOOKUP($B42,Filtro_DIC!$A$3:$N$35,2,FALSE),0) -> 38 | G42: =IFERROR(VLOOKUP($B42,Filtro_DIC!$A$3:$N$35,3,FALSE),0) -> 3 | H42: =IFERROR(VLOOKUP($B42,Filtro_DIC!$A$3:$N$35,4,FALSE),0) -> 29 | I42: =IFERROR(VLOOKUP($B42,Filtro_DIC!$A$3:$N$35,5,FALSE),0) -> 17 | J42: =IFERROR(VLOOKUP($B42,Filtro_DIC!$A$3:$N$35,6,FALSE),0) -> 19 | K42: =IFERROR(VLOOKUP($B42,Filtro_DIC!$A$3:$N$35,7,FALSE),0) -> 18 | L42: =IFERROR(VLOOKUP($B42,Filtro_DIC!$A$3:$N$35,8,FALSE),0) -> 4 | M42: =IFERROR(VLOOKUP($B42,Filtro_DIC!$A$3:$N$35,9,FALSE),0) -> 19 | N42: =IFERROR(VLOOKUP($B42,Filtro_DIC!$A$3:$N$35,10,FALSE),0) -> 22 | O42: =IFERROR(VLOOKUP($B42,Filtro_DIC!$A$3:$N$35,11,FALSE),0) -> 5 | P42: =IFERROR(VLOOKUP($B42,Filtro_DIC!$A$3:$N$35,12,FALSE),0) -> 18 | Q42: =IFERROR(VLOOKUP($B42,Filtro_DIC!$A$3:$N$35,13,FALSE),0) -> 25 | R42: 217
B43: 09600195 | C43: PATOLOGÍA ORAL | D43: CONSULTA NUEVA | F43: =IFERROR(VLOOKUP($B43,Filtro_DIC!$A$3:$N$35,2,FALSE),0) -> 0 | G43: =IFERROR(VLOOKUP($B43,Filtro_DIC!$A$3:$N$35,3,FALSE),0) -> 0 | H43: =IFERROR(VLOOKUP($B43,Filtro_DIC!$A$3:$N$35,4,FALSE),0) -> 0 | I43: =IFERROR(VLOOKUP($B43,Filtro_DIC!$A$3:$N$35,5,FALSE),0) -> 0 | J43: =IFERROR(VLOOKUP($B43,Filtro_DIC!$A$3:$N$35,6,FALSE),0) -> 0 | K43: =IFERROR(VLOOKUP($B43,Filtro_DIC!$A$3:$N$35,7,FALSE),0) -> 0 | L43: =IFERROR(VLOOKUP($B43,Filtro_DIC!$A$3:$N$35,8,FALSE),0) -> 0 | M43: =IFERROR(VLOOKUP($B43,Filtro_DIC!$A$3:$N$35,9,FALSE),0) -> 0 | N43: =IFERROR(VLOOKUP($B43,Filtro_DIC!$A$3:$N$35,10,FALSE),0) -> 0 | O43: =IFERROR(VLOOKUP($B43,Filtro_DIC!$A$3:$N$35,11,FALSE),0) -> 0 | P43: =IFERROR(VLOOKUP($B43,Filtro_DIC!$A$3:$N$35,12,FALSE),0) -> 15 | Q43: =IFERROR(VLOOKUP($B43,Filtro_DIC!$A$3:$N$35,13,FALSE),0) -> 8 | R43: 23
B44: 09600196 | D44: CONTROL | F44: =IFERROR(VLOOKUP($B44,Filtro_DIC!$A$3:$N$35,2,FALSE),0) -> 0 | G44: =IFERROR(VLOOKUP($B44,Filtro_DIC!$A$3:$N$35,3,FALSE),0) -> 0 | H44: =IFERROR(VLOOKUP($B44,Filtro_DIC!$A$3:$N$35,4,FALSE),0) -> 0 | I44: =IFERROR(VLOOKUP($B44,Filtro_DIC!$A$3:$N$35,5,FALSE),0) -> 0 | J44: =IFERROR(VLOOKUP($B44,Filtro_DIC!$A$3:$N$35,6,FALSE),0) -> 0 | K44: =IFERROR(VLOOKUP($B44,Filtro_DIC!$A$3:$N$35,7,FALSE),0) -> 0 | L44: =IFERROR(VLOOKUP($B44,Filtro_DIC!$A$3:$N$35,8,FALSE),0) -> 0 | M44: =IFERROR(VLOOKUP($B44,Filtro_DIC!$A$3:$N$35,9,FALSE),0) -> 0 | N44: =IFERROR(VLOOKUP($B44,Filtro_DIC!$A$3:$N$35,10,FALSE),0) -> 0 | O44: =IFERROR(VLOOKUP($B44,Filtro_DIC!$A$3:$N$35,11,FALSE),0) -> 0 | P44: =IFERROR(VLOOKUP($B44,Filtro_DIC!$A$3:$N$35,12,FALSE),0) -> 13 | Q44: =IFERROR(VLOOKUP($B44,Filtro_DIC!$A$3:$N$35,13,FALSE),0) -> 3 | R44: 16
B45: 09600198 | C45: TRASTORNOS TEMPOROMANDIBULARES Y DOLOR OROFACIAL | D45: CONSULTA NUEVA | F45: =IFERROR(VLOOKUP($B45,Filtro_DIC!$A$3:$N$35,2,FALSE),0) -> 6 | G45: =IFERROR(VLOOKUP($B45,Filtro_DIC!$A$3:$N$35,3,FALSE),0) -> 8 | H45: =IFERROR(VLOOKUP($B45,Filtro_DIC!$A$3:$N$35,4,FALSE),0) -> 10 | I45: =IFERROR(VLOOKUP($B45,Filtro_DIC!$A$3:$N$35,5,FALSE),0) -> 10 | J45: =IFERROR(VLOOKUP($B45,Filtro_DIC!$A$3:$N$35,6,FALSE),0) -> 7 | K45: =IFERROR(VLOOKUP($B45,Filtro_DIC!$A$3:$N$35,7,FALSE),0) -> 15 | L45: =IFERROR(VLOOKUP($B45,Filtro_DIC!$A$3:$N$35,8,FALSE),0) -> 7 | M45: =IFERROR(VLOOKUP($B45,Filtro_DIC!$A$3:$N$35,9,FALSE),0) -> 11 | N45: =IFERROR(VLOOKUP($B45,Filtro_DIC!$A$3:$N$35,10,FALSE),0) -> 12 | O45: =IFERROR(VLOOKUP($B45,Filtro_DIC!$A$3:$N$35,11,FALSE),0) -> 14 | P45: =IFERROR(VLOOKUP($B45,Filtro_DIC!$A$3:$N$35,12,FALSE),0) -> 2 | Q45: =IFERROR(VLOOKUP($B45,Filtro_DIC!$A$3:$N$35,13,FALSE),0) -> 6 | R45: 108
B46: 09600199 | D46: CONTROL | F46: =IFERROR(VLOOKUP($B46,Filtro_DIC!$A$3:$N$35,2,FALSE),0) -> 36 | G46: =IFERROR(VLOOKUP($B46,Filtro_DIC!$A$3:$N$35,3,FALSE),0) -> 31 | H46: =IFERROR(VLOOKUP($B46,Filtro_DIC!$A$3:$N$35,4,FALSE),0) -> 38 | I46: =IFERROR(VLOOKUP($B46,Filtro_DIC!$A$3:$N$35,5,FALSE),0) -> 45 | J46: =IFERROR(VLOOKUP($B46,Filtro_DIC!$A$3:$N$35,6,FALSE),0) -> 46 | K46: =IFERROR(VLOOKUP($B46,Filtro_DIC!$A$3:$N$35,7,FALSE),0) -> 52 | L46: =IFERROR(VLOOKUP($B46,Filtro_DIC!$A$3:$N$35,8,FALSE),0) -> 34 | M46: =IFERROR(VLOOKUP($B46,Filtro_DIC!$A$3:$N$35,9,FALSE),0) -> 37 | N46: =IFERROR(VLOOKUP($B46,Filtro_DIC!$A$3:$N$35,10,FALSE),0) -> 41 | O46: =IFERROR(VLOOKUP($B46,Filtro_DIC!$A$3:$N$35,11,FALSE),0) -> 30 | P46: =IFERROR(VLOOKUP($B46,Filtro_DIC!$A$3:$N$35,12,FALSE),0) -> 20 | Q46: =IFERROR(VLOOKUP($B46,Filtro_DIC!$A$3:$N$35,13,FALSE),0) -> 17 | R46: 427
C47: TOTAL | D47: URGENCIA | F47: =SUM(F17:F18) -> 75 | G47: =SUM(G17:G18) -> 50 | H47: 53 | I47: 53 | J47: 49 | K47: 11 | L47: 30 | M47: 54 | N47: 19 | O47: 33 | P47: 25 | Q47: 17 | R47: =SUM(F47:Q47) -> 469
D48: CONSULTA NUEVA | F48: =SUM(F19,F21,F23,F25,F27,F29,F31,F33,F35,F37,F39,F41,F43,F45) -> 423 | G48: =SUM(G19,G21,G23,G25,G27,G29,G31,G33,G35,G37,G39,G41,G43,G45) -> 314 | H48: 508 | I48: 386 | J48: 469 | K48: 591 | L48: 507 | M48: 324 | N48: 341 | O48: 416 | P48: 518 | Q48: 381 | R48: =SUM(F48:Q48) -> 5178
D49: CONTROL | F49: =SUM(F20,F22,F24,F26,F28,F30,F32,F34,F36,F38,F40,F42,F44,F46) -> 1606 | G49: 1064 | H49: 1909 | I49: 1623 | J49: 1901 | K49: 1466 | L49: 1501 | M49: 1990 | N49: 1315 | O49: 1635 | P49: 1706 | Q49: 1537 | R49: 19253

Sheet Filtro_DIC (hidden)
A1: IdEstablecimiento | B1: 105100
A3: Suma de Col01 | B3: Etiquetas de columna
A4: Etiquetas de fila | B4: 1 | C4: 2 | D4: 3 | E4: 4 | F4: 5 | G4: 6 | H4: 7 | I4: 8 | J4: 9 | K4: 10 | L4: 11 | M4: 12 | N4: Total general
A5: 09240700 | B5: 48 | C5: 36 | D5: 37 | E5: 41 | F5: 38 | G5: 10 | H5: 18 | I5: 37 | J5: 17 | K5: 22 | L5: 22 | M5: 11 | N5: 337
A6: 09600155 | B6: 16 | C6: 24 | D6: 25 | E6: 7 | F6: 36 | G6: 39 | H6: 36 | I6: 11 | J6: 45 | K6: 59 | L6: 59 | M6: 35 | N6: 392
A7: 09600156 | B7: 75 | C7: 92 | D7: 75 | E7: 25 | F7: 89 | G7: 93 | H7: 104 | I7: 132 | J7: 76 | K7: 92 | L7: 118 | M7: 55 | N7: 1026
A8: 09600158 | B8: 45 | C8: 55 | D8: 53 | E8: 52 | F8: 61 | G8: 65 | H8: 42 | I8: 50 | J8: 67 | K8: 90 | L8: 90 | M8: 73 | N8: 743
A9: 09600159 | B9: 120 | C9: 151 | D9: 210 | E9: 229 | F9: 193 | G9: 193 | H9: 136 | I9: 165 | J9: 140 | K9: 201 | L9: 208 | M9: 252 | N9: 2198
A10: 09600161 | B10: 112 | C10: 88 | D10: 175 | E10: 124 | F10: 128 | G10: 139 | H10: 146 | I10: 104 | J10: 84 | K10: 82 | L10: 85 | M10: 66 | N10: 1333
A11: 09600162 | B11: 189 | C11: 153 | D11: 251 | E11: 172 | F11: 246 | G11: 180 | H11: 216 | I11: 223 | J11: 187 | K11: 226 | L11: 198 | M11: 190 | N11: 2431
A12: 09600164 | B12: 70 | C12: 30 | D12: 48 | E12: 48 | F12: 49 | G12: 42 | H12: 55 | I12: 36 | J12: 32 | K12: 44 | L12: 42 | M12: 35 | N12: 531
A13: 09600165 | B13: 227 | C13: 139 | D13: 226 | E13: 189 | F13: 225 | G13: 176 | H13: 233 | I13: 187 | J13: 191 | K13: 192 | L13: 248 | M13: 245 | N13: 2478
A14: 09600167 | B14: 11 | C14: 5 | D14: 9 | E14: 6 | F14: 11 | G14: 15 | H14: 7 | I14: 6 | J14: 8 | K14: 6 | L14: 14 | M14: 4 | N14: 102
A15: 09600168 | B15: 52 | C15: 17 | D15: 35 | E15: 32 | F15: 50 | G15: 30 | H15: 20 | I15: 41 | J15: 30 | K15: 25 | L15: 26 | M15: 15 | N15: 373
A16: 09600170 | B16: 31 | C16: 12 | D16: 42 | E16: 38 | F16: 52 | G16: 52 | H16: 68 | I16: 10 | J16: 0 | K16: 0 | L16: 43 | M16: 57 | N16: 405
A17: 09600171 | B17: 216 | C17: 110 | D17: 309 | E17: 260 | F17: 327 | G17: 196 | H17: 345 | I17: 364 | J17: 82 | K17: 303 | L17: 292 | M17: 336 | N17: 3140
A18: 09600173 | B18: 14 | C18: 3 | D18: 10 | E18: 1 | F18: 8 | G18: 7 | H18: 10 | I18: 1 | L18: 16 | M18: 13 | N18: 83
A19: 09600174 | B19: 101 | C19: 38 | D19: 117 | E19: 105 | F19: 129 | G19: 73 | H19: 104 | I19: 126 | J19: 27 | K19: 116 | L19: 93 | M19: 85 | N19: 1114
A20: 09600178 | B20: 40 | C20: 43 | D20: 46 | E20: 33 | F20: 42 | G20: 102 | H20: 68 | I20: 66 | J20: 62 | K20: 81 | L20: 69 | M20: 56 | N20: 708
A21: 09600179 | B21: 181 | C21: 112 | D21: 214 | E21: 105 | F21: 158 | G21: 170 | H21: 118 | I21: 201 | J21: 131 | K21: 148 | L21: 158 | M21: 129 | N21: 1825
A22: 09600181 | C22: 4 | D22: 9 | E22: 2 | F22: 4 | G22: 6 | H22: 1 | J22: 2 | K22: 5 | L22: 5 | N22: 38
A23: 09600182 | B23: 7 | C23: 4 | D23: 10 | E23: 6 | F23: 10 | G23: 5 | H23: 5 | I23: 11 | J23: 10 | K23: 6 | L23: 8 | M23: 8 | N23: 90
A24: 09600184 | B24: 62 | C24: 40 | D24: 63 | E24: 53 | F24: 54 | G24: 92 | H24: 65 | I24: 24 | J24: 25 | K24: 34 | L24: 78 | M24: 28 | N24: 618
A25: 09600185 | B25: 337 | C25: 203 | D25: 367 | E25: 406 | F25: 376 | G25: 264 | H25: 179 | I25: 464 | J25: 364 | K25: 287 | L25: 292 | M25: 166 | N25: 3705
A26: 09600187 | B26: 2 | C26: 0 | D26: 4 | E26: 2 | F26: 3 | G26: 0 | H26: 1 | I26: 5 | J26: 2 | K26: 1 | N26: 20
A27: 09600188 | B27: 27 | C27: 11 | D27: 28 | E27: 32 | F27: 33 | G27: 16 | H27: 3 | I27: 20 | J27: 14 | K27: 4 | L27: 14 | M27: 11 | N27: 213
A28: 09600192 | B28: 14 | C28: 2 | D28: 14 | E28: 10 | F28: 14 | G28: 17 | H28: 1 | J28: 2 | N28: 74
A29: 09600193 | B29: 38 | C29: 3 | D29: 29 | E29: 17 | F29: 19 | G29: 18 | H29: 4 | I29: 19 | J29: 22 | K29: 5 | L29: 18 | M29: 25 | N29: 217
A30: 09600195 | L30: 15 | M30: 8 | N30: 23
A31: 09600196 | L31: 13 | M31: 3 | N31: 16
A32: 09600198 | B32: 6 | C32: 8 | D32: 10 | E32: 10 | F32: 7 | G32: 15 | H32: 7 | I32: 11 | J32: 12 | K32: 14 | L32: 2 | M32: 6 | N32: 108
A33: 09600199 | B33: 36 | C33: 31 | D33: 38 | E33: 45 | F33: 46 | G33: 52 | H33: 34 | I33: 37 | J33: 41 | K33: 30 | L33: 20 | M33: 17 | N33: 427
A34: 09600325 | B34: 27 | C34: 14 | D34: 16 | E34: 12 | F34: 11 | G34: 1 | H34: 12 | I34: 17 | J34: 2 | K34: 11 | L34: 3 | M34: 6 | N34: 132
A35: Total general | B35: 2104 | C35: 1428 | D35: 2470 | E35: 2062 | F35: 2419 | G35: 2068 | H35: 2038 | I35: 2368 | J35: 1675 | K35: 2084 | L35: 2249 | M35: 1935 | N35: 24900
